{"text_format":"1","workbook":"xlsx","n_sheets":10,"sheets":["入力シート","新特小訓第４号（生産指標）","新特小訓第６号（申立書）","新特小訓第９号（実績一覧表）","新特小訓第８号（算定書）","新特小訓第７号（申請書）","被保険者以外の方向け様式→","新小第２号の２（3）（実績一覧表）","新小第２号の２（１）（算定書）","新小第２号の2（２）（申請書）"],"not_rendered":{"charts":0,"images":0,"macros":1,"external_links":0,"defined_names":9,"comments":2,"pivot_tables":0},"unopened":[],"bounds":{"document_bytes":16777216,"sheet_cells":100000,"rows_first":2000,"rows_last":500,"rows_between":2000,"halvings":0,"cell_chars":16384,"cell_head_chars":4096},"cells_cut":0,"cells_raw":0,"read":"whole","date_system":"1900"}

{"sheet":"入力シート","index":0,"n_rows":25,"n_cols":34,"rows_kept":25,"cut":false,"hidden":false,"merged":[[0,0,0,33],[2,6,2,33],[1,0,1,5],[1,6,1,33],[4,0,4,5],[2,0,2,5],[3,0,3,5],[7,6,7,8],[7,10,7,13],[3,7,3,8],[3,10,3,12],[4,6,4,33],[5,6,5,7],[5,9,5,11],[5,13,5,15],[6,6,6,7],[6,9,6,11],[6,13,6,15],[24,0,24,5],[23,0,23,5],[22,0,22,5],[21,0,21,5],[11,6,11,33],[13,6,13,20],[14,6,14,9],[12,6,12,9],[20,6,20,33],[19,0,19,33],[16,6,16,20],[21,6,21,33],[22,7,22,8],[22,10,22,12],[24,6,24,7],[24,9,24,11],[8,0,8,5],[7,0,7,5],[5,0,5,5],[20,0,20,5],[11,0,11,5],[10,0,10,5],[9,0,9,5],[14,0,14,5],[12,0,12,5],[17,0,17,5],[13,0,13,5],[16,0,16,5],[15,0,15,5],[6,0,6,5],[24,13,24,15],[8,6,8,15],[9,6,9,33],[10,7,10,8],[15,6,15,20],[10,9,10,10],[10,15,10,16],[10,18,10,27],[23,6,23,33],[17,6,17,16],[17,18,17,32]]}
["事業所基本情報入力シート"]
["今回申請する事業所名"]
["事業所の代表者の役職氏名"]
["郵便番号",null,null,null,null,null,"〒",null,null,"ー"]
["住所"]
["電話番号",null,null,null,null,null,null,null,"ー",null,null,null,"ー"]
["休業時に連絡のつく電話番号",null,null,null,null,null,null,null,"ー",null,null,null,"ー"]
["雇用保険適用事業所番号",null,null,null,null,null,null,null,null,"ー",null,null,null,null,"ー"]
["法人番号（法人マイナンバー）"]
["事務担当者の所属氏名"]
["賃金の締切日",null,null,null,null,null,"a.","毎月",null,null,null,"日",null,null,"b.","その他",null,"(",null,null,null,null,null,null,null,null,null,null,")"]
["振込先金融機関名"]
["金融機関コード"]
["支店名"]
["支店コード"]
["口座の種類"]
["口座番号"]
["口座名義（フリガナ）",null,null,null,null,null,null,null,null,null,null,null,null,null,null,null,null,"(",null,null,null,null,null,null,null,null,null,null,null,null,null,null,null,")"]
[]
["※代理人又は(提出代行者・事務代理者)社会保険労務士が申請する場合には、以下についてもご記入ください。"]
["名称"]
["氏名"]
["郵便番号",null,null,null,null,null,"〒",null,null,"ー"]
["住所"]
["電話番号",null,null,null,null,null,null,null,"ー",null,null,null,"ー"]

{"sheet":"新特小訓第４号（生産指標）","index":1,"n_rows":75,"n_cols":66,"rows_kept":75,"cut":false,"hidden":false,"merged":[[74,0,79,65],[56,0,56,4],[63,0,73,65],[31,30,31,40],[30,41,32,56],[30,57,32,65],[33,57,34,65],[33,0,33,5],[34,1,34,4],[57,0,62,65],[49,0,53,64],[33,6,34,17],[30,0,32,5],[38,57,39,65],[40,58,40,64],[31,6,31,7],[31,18,31,19],[23,14,23,22],[30,6,30,17],[41,0,44,56],[45,0,48,56],[38,0,40,56],[30,18,30,29],[30,30,30,40],[27,0,28,65],[32,6,32,7],[33,18,34,29],[33,30,34,40],[33,41,34,56],[32,18,32,19],[11,0,13,65],[9,8,9,54],[26,0,26,65],[25,44,25,46],[22,43,22,46],[22,3,22,13],[22,14,22,21],[25,37,25,40],[25,41,25,42],[23,37,23,38],[23,39,23,64],[24,37,24,38],[24,39,24,63],[25,58,25,62],[25,48,25,50],[23,3,23,13],[8,57,9,57],[8,65,9,65],[8,0,8,6],[19,30,20,64],[22,48,22,64],[18,30,18,33],[18,34,18,35],[18,37,18,39],[22,27,24,36],[22,37,22,38],[22,40,22,41],[16,30,16,31],[16,32,16,64],[17,30,17,31],[17,32,17,63],[18,41,18,43],[1,0,1,48],[8,58,9,64],[6,57,7,65],[15,36,15,39],[15,41,15,64],[15,7,15,8],[15,9,15,10],[15,12,15,13],[15,15,15,16],[15,26,17,29],[15,30,15,31],[15,33,15,34],[3,0,3,65],[5,0,5,65],[6,0,6,56],[7,0,7,56]]}
[]
["様式新特小訓第４号（新型コロナウイルス感染症関係）（小規模事業主（自動計算）用様式）(R3.1)"]
[]
["雇用調整実施事業所の事業活動の状況に関する申出書（新型コロナウイルス感染症関係）"]
[]
["新型コロナウイルス感染症の影響との関わりについて、次の項目を確認して当てはまるものがあれば、右側の回答欄に「はい」を記入してください。"]
["○新型コロナウイルス感染症の影響による来客の減少により、売上が減少し、事業規模の縮小を余儀なくされた。",null,null,null,null,null,null,null,null,null,null,null,null,null,null,null,null,null,null,null,null,null,null,null,null,null,null,null,null,null,null,null,null,null,null,null,null,null,null,null,null,null,null,null,null,null,null,null,null,null,null,null,null,null,null,null,null,"左のいずれかに該当しますか。"]
["○新型コロナウイルス感染症の影響により、必要な資材の搬入がなされず、生産物の生産が出来なくなり、事業規模の縮小を余儀なくされた。"]
["○その他",null,null,null,null,null,null,"(","新型コロナウイルス感染症の影響により、",null,null,null,null,null,null,null,null,null,null,null,null,null,null,null,null,null,null,null,null,null,null,null,null,null,null,null,null,null,null,null,null,null,null,null,null,null,null,null,null,null,null,null,null,null,null,null,null,"（",null,null,null,null,null,null,null,"）"]
[null,null,null,null,null,null,null,null,null,null,null,null,null,null,null,null,null,null,null,null,null,null,null,null,null,null,null,null,null,null,null,null,null,null,null,null,null,null,null,null,null,null,null,null,null,null,null,null,null,null,null,null,null,null,null,"）"]
[]
["事業活動の状況が悪化し、月間の売上高などが減少したので、次のとおり申し出ます。\nこの書類に記載した事項については、いずれも間違いありません。\nなお、休業等により従業員の雇用維持に努める期間中、またはその期間のあと、ハローワーク又は労働局の立入検査等を行う場合にはこれに協力します。"]
[]
[]
[]
[null,null,null,null,null,null,null,"令和",null,null,null,"年     ",null,null,"月 ",null,null,"日",null,null,null,null,null,null,null,null,"事業主 ",null,null,null,"住所",null,"〒",{"$f":"IF(入力シート!H4=\"\",\"\",入力シート!H4)","v":""},null,"－",{"$f":"IF(入力シート!K4=\"\",\"\",入力シート!K4)","v":""},null,null,null,null,{"$f":"IF(入力シート!G5=\"\",\"\",入力シート!G5)","v":""}]
[null,null,null,null,null,null,null,null,null,null,null,null,null,null,null,null,null,null,null,null,null,null,null,null,null,null,null,null,null,null,"名称",null,{"$f":"IF(入力シート!G2=\"\",\"\",入力シート!G2)","v":""}]
[null,null,null,null,null,null,null,null,null,null,null,null,null,null,null,null,null,null,null,null,null,null,null,null,null,null,null,null,null,null,"氏名",null,{"$f":"IF(入力シート!G3=\"\",\"\",入力シート!G3)","v":""}]
[null,null,null,null,null,null,null,null,null,null,null,null,null,null,null,null,null,null,null,null,null,null,null,null,null,null,null,null,null,null,"電話番号",null,null,null,{"$f":"IF(入力シート!G6=\"\",\"\",入力シート!G6)","v":""},null,"-",{"$f":"IF(入力シート!J6=\"\",\"\",入力シート!J6)","v":""},null,null,"-",{"$f":"IF(入力シート!N6=\"\",\"\",入力シート!N6)","v":""}]
[null,null,null,null,null,null,null,null,null,null,null,null,null,null,null,null,null,null,null,null,null,null,null,null,null,null,null,null,null,null,"申請者が代理人の場合、上欄に事業主の氏名等を、下欄に代理人の氏名等を、申請者が社会保険労務士法施行規則第16条第2項に規定する提出代行者又は同令第16条の3に規定する事務代理者の場合、上欄に事業主の氏名等等を、下欄に申請者の氏名等を記載して下さい。"]
[]
[]
[null,null,null,"事業所管轄",null,null,null,null,null,null,null,null,null,null,"労働局長  殿",null,null,null,null,null,null,null,null,null,null,null,null,"代理人又は \n(提出代行者・事務代理者)\n社会保険労務士",null,null,null,null,null,null,null,null,null,"住所",null,"〒",{"$f":"IF(入力シート!H23=\"\",\"\",入力シート!H23)","v":""},null,"－",{"$f":"IF(入力シート!K23=\"\",\"\",入力シート!K23)","v":""},null,null,null,null,{"$f":"IF(入力シート!G24=\"\",\"\",入力シート!G24)","v":""}]
[null,null,"（","事業所管轄",null,null,null,null,null,null,null,null,null,null,"公共職業安定所経由）",null,null,null,null,null,null,null,null,null,null,null,null,null,null,null,null,null,null,null,null,null,null,"名称",null,{"$f":"IF(入力シート!G21=\"\",\"\",入力シート!G21)","v":""}]
[null,null,null,null,null,null,null,null,null,null,null,null,null,null,null,null,null,null,null,null,null,null,null,null,null,null,null,null,null,null,null,null,null,null,null,null,null,"氏名",null,{"$f":"IF(入力シート!G22=\"\",\"\",入力シート!G22)","v":""}]
[null,null,null,null,null,null,null,null,null,null,null,null,null,null,null,null,null,null,null,null,null,null,null,null,null,null,null,null,null,null,null,null,null,null,null,null,null,"電話番号",null,null,null,{"$f":"IF(入力シート!G25=\"\",\"\",入力シート!G25)","v":""},null,"-",{"$f":"IF(入力シート!J25=\"\",\"\",入力シート!J25)","v":""},null,null,"-",{"$f":"IF(入力シート!N25=\"\",\"\",入力シート!N25)","v":""}]
["○　事業内容の詳細について記載してください。"]
[]
[]
[]
[null,null,null,null,null,null,"A 判定期間の指標",null,null,null,null,null,null,null,null,null,null,null,"B　Aに対応する期間の指標",null,null,null,null,null,null,null,null,null,null,null,"C",null,null,null,null,null,null,null,null,null,null,"添付書類",null,null,null,null,null,null,null,null,null,null,null,null,null,null,null,"※確認欄"]
[null,null,null,null,null,null,"令和",null,null,"年",null,"月",null,"日",null,"から",null,null,null,null,null,"年",null,"月",null,"日",null,"から",null,null,"A／B　×　100"]
[null,null,null,null,null,null,"令和",null,null,"年",null,"月",null,"日",null,"まで",null,null,null,null,null,"年",null,"月",null,"日",null,"まで"]
["月間売上高",null,null,null,null,null,null,null,null,null,null,null,null,null,null,null,null,null,null,null,null,null,null,null,null,null,null,null,null,null,{"$f":"IF(OR(S34=\"\",S34=0),\"\",G34/S34*100)","v":""}]
["(",null,null,null,null,")"]
[]
[]
[]
["○　生産量等の減に至った理由として次のいずれにも該当しません。",null,null,null,null,null,null,null,null,null,null,null,null,null,null,null,null,null,null,null,null,null,null,null,null,null,null,null,null,null,null,null,null,null,null,null,null,null,null,null,null,null,null,null,null,null,null,null,null,null,null,null,null,null,null,null,null,"「はい」か「いいえ」をご記入ください。"]
[]
[null,null,null,null,null,null,null,null,null,null,null,null,null,null,null,null,null,null,null,null,null,null,null,null,null,null,null,null,null,null,null,null,null,null,null,null,null,null,null,null,null,null,null,null,null,null,null,null,null,null,null,null,null,null,null,null,null,"（",null,null,null,null,null,null,null,"）"]
["１．例年繰り返される季節的変動によるものである。\n（例）・夏物、冬物等季節的な商品を取り扱っている場合\n　　　・降雪地において冬期間事業活動の停止又は縮小を余儀なくされる場合\n　　　・例年、決算期末に生産量が増加し、その後減少することを繰り返す場合　など"]
[]
[]
[]
["２．事故又は災害により施設又は設備が被害を受けたことによるものである。\n（例）・機械、システム等の故障又は交通事故等の事故による場合\n　　　・火災、地震、洪水等の災害により建物、設備、システム等が被害を受けたことによる場合　など"]
[]
[]
[]
["３．行政処分又は司法処分により事業活動の全部又は一部の停止を命じられたことによるものである。\n（例）・営業規制、安全規則、競争規則等の法令違反（その疑いを含む）により行政当局から事業活動の全部又は一部の停止を命じられた場合\n　　　・不法占拠、特許侵害、名誉毀損等の不法行為（その疑いを含む）により司法当局から事業活動の全部又は一部の停止を命じられた場合\n　　　・新型コロナウイルス感染症に従業員が感染したことにより、行政当局から事業活動の全部又は一部の停止を命じられた場合　など"]
[]
[]
[]
[]
[]
[]
["注　意"]
["１　この申出書は、新型コロナウイルス感染症の影響による需要（受注量、客数等）の減少等により事業活動が縮小した事業所の事業主が、初回の支給申請をする際に提出してください。\n\n２　A欄及びB欄には、月間売上高又は生産量等を記入してください。ただし、売上高以外のときは、当該事業所の事業活動を示す指標（生産量・販売額等）を括弧内に記入し、それにより算定した数値を記入してください。\n"]
[]
[]
[]
[]
[]
["３　A欄には、申請時に最も直近となる判定基礎期間の初日が属する月（以下「判定月」という。）又は判定月の前月若しくは判定月の前々月のいずれかの月の数値を記入してください。\n\n４　B欄はA欄の記入に係る期間の前年同期のものの数値を記入してください（A欄、B欄において、計算の結果に端数が生じる場合、小数点第１位を四捨五入して下さい。）。なお、B欄については、以下のいずれかによることが出来ます。ただし、（２）については、前年同期のものの数値、又は（１）における比較に用いる月が事業の立ち上げ期であったこと等により、これと直近の１か月の指標を比較しても、要件を満たさない場合に限ります。\n（１）前々年同期１か月分（当該１か月の期間、雇用保険適用事業所であって労働者を雇用している場合に限る。）\n（２）提出日の属する月の前々月から最近１年間において、比較月として用いることが適切だと認める１か月（当該１か月の期間、雇用保険適用事業所であって労働者を雇用している場合に限る。）"]
[]
[]
[]
[]
[]
[]
[]
[]
[]
[]
["５　C欄は、小数点以下が生じても端数処理を行わないで下さい。\n\n６　この様式の提出に当たっては、A欄からC欄の数値を証する書類（写）を添付し、その書類名を添付書類欄に記載してください。\n\n７　※欄には、記入しないでください。"]

{"sheet":"新特小訓第６号（申立書）","index":2,"n_rows":166,"n_cols":40,"rows_kept":166,"cut":false,"hidden":false,"merged":[[164,16,164,27],[163,16,163,27],[162,16,162,27],[161,16,161,27],[160,16,160,27],[159,16,159,27],[158,16,158,27],[157,16,157,27],[156,16,156,27],[88,0,93,39],[139,0,144,39],[146,0,147,39],[148,0,148,2],[148,3,148,39],[94,0,102,39],[103,0,113,39],[114,0,125,39],[126,0,138,39],[86,0,87,39],[81,34,81,36],[81,38,81,39],[82,6,82,7],[82,8,82,35],[83,6,83,7],[83,8,84,28],[83,29,84,35],[83,38,84,39],[81,0,84,5],[81,6,81,7],[81,8,81,26],[81,27,81,30],[81,31,81,32],[164,28,164,30],[164,31,164,32],[164,34,164,35],[164,37,164,38],[165,0,170,39],[3,6,3,31],[4,6,4,31],[5,7,5,31],[162,34,162,35],[162,37,162,38],[163,28,163,30],[163,31,163,32],[163,34,163,35],[163,37,163,38],[160,28,160,30],[160,31,160,32],[160,34,160,35],[160,37,160,38],[161,28,161,30],[161,31,161,32],[161,34,161,35],[161,37,161,38],[158,28,158,30],[85,0,85,39],[158,31,158,32],[158,34,158,35],[158,37,158,38],[159,28,159,30],[159,31,159,32],[159,34,159,35],[159,37,159,38],[156,28,156,30],[156,31,156,32],[156,34,156,35],[156,37,156,38],[157,28,157,30],[157,31,157,32],[157,34,157,35],[157,37,157,38],[164,0,164,7],[163,0,163,7],[162,0,162,7],[161,0,161,7],[155,28,155,30],[155,31,155,32],[155,34,155,35],[155,37,155,38],[164,8,164,15],[163,8,163,15],[162,8,162,15],[161,8,161,15],[162,28,162,30],[162,31,162,32],[158,8,158,15],[158,0,158,7],[157,8,157,15],[157,0,157,7],[160,8,160,15],[160,0,160,7],[159,8,159,15],[159,0,159,7],[156,8,156,15],[156,0,156,7],[155,8,155,15],[155,0,155,7],[149,4,149,39],[150,5,150,39],[152,0,154,7],[152,8,154,15],[152,28,154,39],[150,0,150,4],[149,0,149,3],[151,0,151,10],[151,11,151,20],[151,22,151,36],[151,38,151,39],[155,16,155,27],[152,16,154,27],[64,34,64,36],[64,38,64,39],[65,6,65,7],[65,8,65,35],[66,6,66,7],[66,8,67,28],[66,29,67,35],[66,38,67,39],[55,0,57,39],[64,6,64,7],[64,8,64,26],[64,27,64,30],[64,31,64,32],[64,0,67,5],[59,34,59,36],[59,38,59,39],[61,38,62,39],[68,0,70,39],[71,0,72,39],[73,0,79,39],[59,1,59,4],[59,6,59,7],[47,6,48,17],[46,33,46,38],[41,0,46,31],[44,33,44,38],[42,33,42,38],[60,6,60,7],[61,6,61,7],[59,27,59,30],[61,29,62,35],[61,8,62,28],[60,8,60,35],[49,0,49,2],[49,11,49,17],[50,11,50,17],[50,19,50,24],[49,18,49,21],[51,0,54,39],[59,8,59,26],[59,31,59,32],[7,0,8,31],[9,0,11,31],[12,0,17,31],[34,33,35,38],[34,32,40,32],[34,39,40,39],[37,33,37,38],[18,0,33,31],[34,0,40,31],[23,33,24,38],[25,33,25,38],[12,33,15,38],[16,33,16,38],[9,33,9,38],[10,33,10,38],[0,0,0,39],[1,0,1,39],[3,32,3,33],[6,13,6,17],[6,19,6,28],[6,30,6,31],[2,0,2,31],[2,32,2,39],[3,0,3,5],[4,0,4,5],[5,0,5,6],[6,0,6,12],[4,32,4,35],[4,36,4,39]]}
["様式新特小訓第６号支給要件確認申立書（新型コロナウイルス感染症関係）（小規模事業主（自動計算）用様式）(R3.2)"]
["支給要件確認申立書（雇用調整助成金）"]
["事業主記載",null,null,null,null,null,null,null,null,null,null,null,null,null,null,null,null,null,null,null,null,null,null,null,null,null,null,null,null,null,null,null,"※１　確認欄"]
["１．事業主名",null,null,null,null,null,{"$f":"IF('新特小訓第４号（生産指標）'!AG17=\"\",\"\",'新特小訓第４号（生産指標）'!AG17)","v":""},null,null,null,null,null,null,null,null,null,null,null,null,null,null,null,null,null,null,null,null,null,null,null,null,null,"令和",null,null,"年",null,"月",null,"日"]
["（法人番号）",null,null,null,null,null,{"$f":"IF(入力シート!G9=\"\",\"\",入力シート!G9)","v":""},null,null,null,null,null,null,null,null,null,null,null,null,null,null,null,null,null,null,null,null,null,null,null,null,null,"確認者"]
["２．事業所名称",null,null,null,null,null,null,{"$f":"IF(入力シート!G2=\"\",\"\",入力シート!G2)","v":""}]
["３．雇用保険適用事業所番号",null,null,null,null,null,null,null,null,null,null,null,null,{"$f":"IF(入力シート!G8=\"\",\"\",入力シート!G8)","v":""},null,null,null,null,"-",{"$f":"IF(入力シート!K8=\"\",\"\",入力シート!K8)","v":""},null,null,null,null,null,null,null,null,null,"-",{"$f":"IF(入力シート!P8=\"\",\"\",入力シート!P8)","v":""}]
["○　事業活動等に係る状況（はい・いいえのどちらかを○で囲んでください）（後述の「記載にあたっての留意点」の内容を了解した上でご回答下さい。）"]
[]
["４　過去に申請した雇用関係助成金について不正受給による不支給決定又は支給決定の取り消しを受けたことがあり、当該不支給決定日又は支給決定取消日から５年（平成31年3月31日以前に申請した雇用関係助成金に関する不正受給の場合は３年）を経過していない、または、平成31年４月１日以降に申請した雇用関係助成金について不正受給に関与した役員等がいる。",null,null,null,null,null,null,null,null,null,null,null,null,null,null,null,null,null,null,null,null,null,null,null,null,null,null,null,null,null,null,null,null,"左欄4について"]
[]
[]
["５　（４がはいの方のみ）不支給措置期間中であるが、支払い義務を負った金額（※）の全てを支給申請日までに支払っており、本来の不支給措置期間（再度不正受給を行った場合は、当該不正受給に関して設定される不支給措置期間）に加えて、「緊急対応期間中に雇用調整助成金を受給した期間」が不支給措置期間として緊急対応期間終了日の翌日に設定されることを承諾している。\n※ 平成31年４月１日以降に申請した雇用関係助成金について不正受給に関与した役員等がいる場合は、当該役員等が関与した不正受給に関して支払い義務が生じた金額",null,null,null,null,null,null,null,null,null,null,null,null,null,null,null,null,null,null,null,null,null,null,null,null,null,null,null,null,null,null,null,null,"（左欄4がはいの方のみ回答してください）\n左欄5について\n"]
[]
[]
[]
[null,null,null,null,null,null,null,null,null,null,null,null,null,null,null,null,null,null,null,null,null,null,null,null,null,null,null,null,null,null,null,null,"(",null,null,null,null,null,null,")"]
[]
["６　支給申請日の属する年度の前年度より前のいずれかの保険年度における労働保険料の滞納がある（緊急対応期間において、当該滞納した労働保険料について、緊急対応期間終了後に納付することに承諾している場合を除く。）。　　　　　　　　　　　　　　　　　　　　　　　　　　　　　\n７　支給申請日の前日から起算して過去１年において、労働関係法令違反により送検処分を受けている（緊急対応期間において、本助成金を受給した場合には、本来の不支給期間に加えて、「緊急対応期間中に雇用調整助成金を受給した期間」が不支給期間として緊急対応期間終了日の翌日に設定されることを承諾している場合を除く。）。\n８①　事業主若しくは事業主団体（以下「事業主等」という。）又は事業主等の役員等が、暴力団員による不当な行為の防止等に関する法律（平成３年法律第77号。以下「暴力団対策法」という。）第２条第２号に規定する暴力団又は第２条第６号に規定する暴力団員である。　　　　　　　　　　　　　　　　\n②　役員等が、自己、自社若しくは第三者の不正の利益を図る目的又は第三者に損害を加える目的をもって、暴力団又は暴力団員を利用するなどしている。　　　　\n③　役員等が、暴力団又は暴力団員に対して、資金等を供給し、又は便宜を供与するなど直接的あるいは積極的に暴力団の維持、運営に協力し、若しくは関与している。　\n④　役員等が、暴力団又は暴力団員であることを知りながらこれを不当に利用するなどしている。　　　　　　　　　　　　　　　　　　　　　　　　　　　　　　\n⑤　役員等が、暴力団又は暴力団員と社会的に非難されるべき関係を有している。\n９　事業主等又は事業主等の役員等が、破壊活動防止法第４条に規定する暴力主義的破壊活動を行った又は行う恐れがある団体等に属している。　　　　　　　　　　\n10　倒産している。\n"]
[]
[]
[]
[]
[null,null,null,null,null,null,null,null,null,null,null,null,null,null,null,null,null,null,null,null,null,null,null,null,null,null,null,null,null,null,null,null,null,"左欄の6～10について"]
[]
[null,null,null,null,null,null,null,null,null,null,null,null,null,null,null,null,null,null,null,null,null,null,null,null,null,null,null,null,null,null,null,null,"(",null,null,null,null,null,null,")"]
[]
[]
[]
[]
[]
[]
[]
[]
["11　助成金について不正受給を理由に支給決定を取り消された場合、労働局が事業主名等を公表することに承諾する。　　　　　　　　　　　　　　　　　　 \n12　役員等の氏名、役職及び生年月日が記載されている別紙「役員等一覧」又は同内容\nの記載がある書類を添付している。\n13　休業手当の算定の基礎となる賃金の額が支給対象期間のみ引き上げられたものでない\n14　「雇用関係助成金支給要領」に従うことに承諾する。\n15 （雇用調整助成金等オンライン受付システムにおいて申請した場合）オンラインで提出した書類については、原本と相違ない。\n",null,null,null,null,null,null,null,null,null,null,null,null,null,null,null,null,null,null,null,null,null,null,null,null,null,null,null,null,null,null,null,"(","左欄の11～15について",null,null,null,null,null,")"]
[]
[]
[]
[]
[]
[]
["16　雇用されている労働者（雇用保険未加入者を含む）及び派遣労働者の数が、令和２年１月24日から判定基礎期間の末日までの各月末の事業所労働者数の平均の５分の４以上である。\n\n17　（16がいいえの方のみ）季節要因及び一時的な受注増等に対応したため、労働者の数が減少したものである。\n\n18　令和２年１月24日から判定基礎期間の末日までの間に解雇等を行っていない。"]
[null,null,null,null,null,null,null,null,null,null,null,null,null,null,null,null,null,null,null,null,null,null,null,null,null,null,null,null,null,null,null,null,"16"]
[]
[null,null,null,null,null,null,null,null,null,null,null,null,null,null,null,null,null,null,null,null,null,null,null,null,null,null,null,null,null,null,null,null,"17"]
[]
[null,null,null,null,null,null,null,null,null,null,null,null,null,null,null,null,null,null,null,null,null,null,null,null,null,null,null,null,null,null,null,null,"18"]
[null,null,null,null,null,null,"裏面にも記載事項があります。"]
[]
["令和",null,null,{"$f":"IF('新特小訓第４号（生産指標）'!J16=\"\",\"\",'新特小訓第４号（生産指標）'!J16)","v":""},"年",{"$f":"IF('新特小訓第４号（生産指標）'!M16=\"\",\"\",'新特小訓第４号（生産指標）'!M16)","v":""},"月",{"$f":"IF('新特小訓第４号（生産指標）'!P16=\"\",\"\",'新特小訓第４号（生産指標）'!P16)","v":""},"日",null,null,"事業所管轄",null,null,null,null,null,null,"労働局長",null,null,null,null,"殿"]
[null,null,null,null,null,null,null,null,null,null,"（","事業所管轄",null,null,null,null,null,null,"）","公共職業安定所"]
["１から18までの記載事項については、いずれも相違ありません。また、１から18までの事業活動等又はその他の審査に必要な事項についての確認を労働局(安定所)が行う場合には協力します。\nまた、本助成金に関し、偽りその他不正の行為等により本来受けることのできない助成金を受けた場合は、請求があった場合、直ちに請求金（※）を弁済します。"]
[]
[]
[]
["※　請求金は、偽りその他不正の行為による場合は、①不正受給により返還を求められた額、②不正受給の日の翌日から納付の日まで、年３％の割合で算定した延滞金、③不正受給により返還を求められた額の20％に相当する額の合計額です。５において不支給措置期間中に本助成金を受給する場合に、再度不正受給を行った場合には、上記のうち③の「不正受給により返還を求められた額の20％に相当する額」は「不正受給により返還を求められた額の200％に相当する額」となります。なお、偽りその他不正の行為以外の事由により本来受けることのできない助成金を受けた場合は、当該受け取った額です。"]
[]
[]
[]
[null,"事業主",null,null,null,null,"住所",null,{"$f":"IF('新特小訓第４号（生産指標）'!AP16=\"\",\"\",'新特小訓第４号（生産指標）'!AP16)","v":""},null,null,null,null,null,null,null,null,null,null,null,null,null,null,null,null,null,null,"電話番号",null,null,null,{"$f":"IF('新特小訓第４号（生産指標）'!AI19=\"\",\"\",'新特小訓第４号（生産指標）'!AI19)","v":""},null,"-",{"$f":"IF('新特小訓第４号（生産指標）'!AL19=\"\",\"\",'新特小訓第４号（生産指標）'!AL19)","v":""},null,null,"-",{"$f":"IF('新特小訓第４号（生産指標）'!AP19=\"\",\"\",'新特小訓第４号（生産指標）'!AP19)","v":""}]
[null,null,null,null,null,null,"名称",null,{"$f":"IF('新特小訓第４号（生産指標）'!AG17=\"\",\"\",'新特小訓第４号（生産指標）'!AG17)","v":""}]
[null,null,null,null,null,null,"氏名",null,{"$f":"IF('新特小訓第４号（生産指標）'!AG18=\"\",\"\",'新特小訓第４号（生産指標）'!AG18)","v":""}]
[]
[]
["代理人又は社会保険労務士（提出代行者・事務代理者の表示）",null,null,null,null,null,"住所",null,{"$f":"IF('新特小訓第４号（生産指標）'!AW23=\"\",\"\",'新特小訓第４号（生産指標）'!AW23)","v":""},null,null,null,null,null,null,null,null,null,null,null,null,null,null,null,null,null,null,"電話番号",null,null,null,{"$f":"IF('新特小訓第４号（生産指標）'!AP26=\"\",\"\",'新特小訓第４号（生産指標）'!AP26)","v":""},null,"-",{"$f":"IF('新特小訓第４号（生産指標）'!AS26=\"\",\"\",'新特小訓第４号（生産指標）'!AS26)","v":""},null,null,"-",{"$f":"IF('新特小訓第４号（生産指標）'!AW26=\"\",\"\",'新特小訓第４号（生産指標）'!AW26)","v":""}]
[null,null,null,null,null,null,"名称",null,{"$f":"IF('新特小訓第４号（生産指標）'!AN24=\"\",\"\",'新特小訓第４号（生産指標）'!AN24)","v":""}]
[null,null,null,null,null,null,"氏名",null,{"$f":"IF('新特小訓第４号（生産指標）'!AN25=\"\",\"\",'新特小訓第４号（生産指標）'!AN25)","v":""}]
[]
["※社会保険労務士が事業主の申請を代わって行う場合、上欄に事業主の氏名等を、下欄に社会保険労務士法施行規則第１６条第２項又は同規則第１６条の３の規定により氏名等を記載してください。また、代理人が事業主の申請を代わって行う場合、上欄に助成金の支給に係る事業主の氏名等を、下欄に代理人の氏名等を記載してください。"]
[]
[]
["【代理人又は社会保険労務士（以下「代理人等」という。）記載欄】\n※事業主等が直接申請する場合は記載不要です。"]
[]
["本助成金に関し、審査に必要な事項についての確認を労働局（安定所）が行う場合には協力します。\nまた、本助成金に関し、偽りその他不正の行為により申請事業主等が、本来受けることのできない助成金を受けた場合であって、代理人等が故意に不正受給に関与していた場合（偽りその他不正の行為の指示やその事実を知りながら黙認していた場合を含む。）は、①申請事業主等が負担すべき一切の債務について、申請事業主等と連帯し、請求があった場合、直ちに請求金を弁済すべき義務を負うこと、②代理人等に係る事務所（又は法人等）の名称、所在地、氏名及び不正の内容が公表されること、③不支給とした日又は支給を取り消した日から起算して５年間（取り消した日から起算して５年を経過した場合であっても、請求金が納付されていない場合は、時効が完成している場合を除き、納付日まで）は、助成金に係る代理人等が行う申請又は提出代行、事務代理に基づく申請ができないことについて承諾します。"]
[]
[]
[]
[]
[]
[]
[]
["代理人又は社会保険労務士（提出代行者・事務代理者の表示）",null,null,null,null,null,"住所",null,{"$f":"IF('新特小訓第４号（生産指標）'!AW23=\"\",\"\",'新特小訓第４号（生産指標）'!AW23)","v":""},null,null,null,null,null,null,null,null,null,null,null,null,null,null,null,null,null,null,"電話番号",null,null,null,{"$f":"IF(AF65=\"\",\"\",AF65)","v":""},null,"-",{"$f":"IF(AI65=\"\",\"\",AI65)","v":""},null,null,"-",{"$f":"IF(AM65=\"\",\"\",AM65)","v":""}]
[null,null,null,null,null,null,"名称",null,{"$f":"IF('新特小訓第４号（生産指標）'!AN24=\"\",\"\",'新特小訓第４号（生産指標）'!AN24)","v":""}]
[null,null,null,null,null,null,"氏名",null,{"$f":"IF('新特小訓第４号（生産指標）'!AN25=\"\",\"\",'新特小訓第４号（生産指標）'!AN25)","v":""}]
[]
["※代理人等が事業主の申請を代わって行う場合、代理人等の氏名等を記載してください。"]
["記載にあたっての留意点"]
[]
["１．この様式は必要事項を記載するとともに、該当箇所に「○」を付けて、支給申請にあわせて提出してください。\n「※１　確認欄」は、労働局（安定所）が確認等の際に使用しますので記入しないでください。\n２．「１」の法人番号は、平成27年10月以降国税庁長官から本社等に通知された13桁の番号を記入してください。\n３．「４」は、過去に申請した助成金について、不正受給による不支給決定又は支給決定の取り消しを受けたことがある場合は、不支給決定日又は支給決定取消日から５年（平成31年３月31日以前に申請した雇用関係助成金に関する不正受給の場合は３年）を経過するまで、申請（平成31年３月以前に申請した助成金に係る不正受給の場合は、当該不正受給を行った雇用保険の適用事業所に係る申請）を行うことはできません（「５」ではいを選択した場合を除く。）。なお、「不正受給」とは、偽りその他不正の行為（詐欺、脅迫、贈賄等刑法（明治40年法律第45号）各本条に触れる行為のほか、刑法上犯罪を構成するに至らない場合であっても、故意に支給申請書に虚偽の記載を行い又は偽りの証明を行うこと。以下同じ。）により本来受けることのできない助成金の支給を受け、又は受けようとすることです。\nまた、平成31年４月１日以降に申請した雇用関係助成金について、申請事業主等の役員等（事業主等が個人である場合はその者、法人である場合は役員、団体である場合は代表者、理事等をいい、役員名簿等に記載がある者。）に、他の事業主等の役員等として不正受給に関与した役員等がいる場合は申請することができません（「５」ではいを選択した場合を除く。）。なお、「５」ではいを選択した場合は、不支給措置期間中であるが、支払い義務を負った金額（平成31年４月１日以降に申請した雇用関係助成金について不正受給に関与した役員等がいる場合は、当該役員等が関与した不正受給に関して支払い義務が生じた金額）の全てを支給申請日までに支払っている場合に限ります。「５」の「緊急対応期間中に雇用調整助成金を受給した期間」について、複数の適用事業所が受給した場合は、これらの事業所が受給した期間のうち最も長く受給した期間となります。また、この期間は緊急対応期間中に設定し、助成を受けた又は受けようとした判定基礎期間の累計日数のことをいいます。\n"]
[]
[]
[]
[]
[]
["４．「６」は、本助成金の支給に係る事業所において、支給申請日の属する年度の前年度より前のいずれかの保険年度の労働保険料を納付していない場合（緊急対応期間において、当該滞納した労働保険料について、緊急対応期間終了後に納付することに承諾している場合を除く。）は申請することができません。\n５．「７」は、本助成金の支給に係る事業所において、支給申請日の前日から起算して過去１年において、労働基準法等の労働関係法令の違反により送検処分を受けている場合（緊急対応期間において、本助成金を受給した場合には、本来の不支給期間に加えて、「緊急対応期間中に雇用調整助成金を受給した期間」が不支給期間として緊急対応期間終了日の翌日に設定されることを承諾している場合を除く。）は申請することができません。\n６．「８」及び「９」における「役員等」とは、事業主等が個人である場合はその者、法人である場合は役員又は支店若しくは営業所の代表者、団体である場合は代表者、理事等、その他経営に実質的に関与している者をいいます。"]
[]
[]
[]
[]
[]
[]
[]
[]
["７．「10」における「倒産」とは、破産手続開始、再生手続開始、更生手続開始又は特別精算開始の申し立てがされること等の事態をいいます。\n８．「11」における「公表」は、事業主等、代理人等、訓練を行う者（訓練の実施が要件となっている助成金に限る。以下同じ。）が行った不正受給について、次の（１）から（５）までの事項を、記者発表し、かつ、原則労働局のホームページに掲載することにより行います。\n（１）不正受給を行った事業主等の名称、代表者及び役員等（不正に関与した役員等に限る）の氏名\n（２）不正受給に係る事業所の名称、所在地及び事業概要\n（３）不正受給に係る助成金の名称、支給を取り消した日及び返還を命じた額及び返還状況\n（４）事業主等が行った不正の内容\n（５）代理人等が不正受給に関与していた場合は、事務所の名称（法人等の場合は法人等名を含む。）、所在地、氏名及び不正の内容、訓練を行う者が不正受給に関与していた場合は、訓練を行う者の名称（法人等の場合は法人等名を含む。）、所在地、代表者氏名及び不正の内容\n"]
[]
[]
[]
[]
[]
[]
[]
[]
[]
[]
["ホームページへの掲載は、不支給決定日又は支給決定取消日から起算して、５年が経過するまでの期間行います。ただし、支給決定取消日から５年を経過していても、不正受給に係る請求金が納付されていない場合（時効が完成している場合を除く）は納付の日まで期間を延長します。\nなお、平成31年４月１日以降に申請した雇用関係助成金について代理人等が不正受給に関与していた場合は、不支給決定日又は支給決定取消日から起算して５年間は、雇用関係助成金に係る当該代理人が行う申請又は当該社会保険労務士が行う提出代行・事務代理に基づく申請はできません。加えて、支給決定取消日から５年を経過しても、不正受給に係る請求金が納付されていない場合（時効が完成している場合を除く）は、同様に申請はできません。\nまた、平成31年４月１日以降に計画届が提出される訓練（ただし、計画届がない場合は平成31年４月１日以降に開始される訓練）について、訓練を行う者が不正に関与していた場合、不支給決定日又は支給決定取消日から起算して５年間は、当該訓練を行う者が実施した訓練について雇用関係助成金の支給対象となりません。加えて、支給決定取消日から起算して５年を経過しても、不正受給に係る請求金が納付されていない場合（時効が完成している場合を除く）は、同様に支給対象となりません。\n上記（５）に関する不正事案については、厚生労働省ホームページでも掲載しますので、申請等を委任する場合には、不正に関与した代理人ではないか、若しくは、不正に関与した訓練実施者ではないかについてご確認ください。"]
[]
[]
[]
[]
[]
[]
[]
[]
[]
[]
[]
["９. 「12」における役員等とは、事業主等が個人である場合はその者、法人である場合は役員、団体である場合は代表者、理事等をいい、役員名簿等に記載がある者をいいます。\n10.「16」及び「18」が「はい」、もしくは、「17」及び「18」が「はい」であれば、上乗せ助成（４分の３（中小企業事業主にあっては、10分の10））となります。\n11.「17」の特定の季節に繁忙期が到来するなどの理由や、一時的な受注増に対応したなどの理由がある場合には、「はい」に○をしてください。\n12.「18」の解雇等（解雇予告を含む。）とは、以下を指します。\n①　事業主に直接雇用される期間の定めのない労働契約を締結する労働者の場合、解雇又は退職勧奨（労働者が同意した場合も含む。）等により事業主都合による離職をさせること\n②　事業主に直接雇用される期間の定めのある労働契約を締結する労働者の場合、解雇と見なされる労働者の雇止め、中途契約解除等により事業主都合による離職をさせること\n③　対象事業主の事業所に役務の提供を行っている派遣労働者の場合、労働者派遣契約期間満了前の事業主都合による契約解除\nなお、以上については、コロナウイルス感染症を理由とする解雇も含みます。"]
[]
[]
[]
[]
[]
[]
[]
[]
[]
[]
[]
[]
["13．「４」で「はい」（「５」で「はい」に○を付けた場合を除く。）又は「６」から「10」で「はい」に「○」を付けた場合は、助成金の支給を受けることはできません。また、「11」から「15」で「いいえ」に「○」を付けた場合も、助成金の支給を受けることはできません。"]
[]
[]
[]
[]
[]
[null,null,null,null,null,null,null,null,null,null,null,null,null,null,null,null,null,null,null,null,null,null,null,null,null,null,null,null,null,null,null,null,null,null,null,null,null,null,null,"（別紙）"]
["役員等一覧"]
[]
["法人名",null,null,{"$f":"IF(G4=\"\",\"\",G4)","v":""}]
["法人番号",null,null,null,{"$f":"IF(G5=\"\",\"\",G5)","v":""}]
["事業所名称",null,null,null,null,{"$f":"IF(H6=\"\",\"\",H6)","v":""}]
["雇用保険適用事業所番号",null,null,null,null,null,null,null,null,null,null,{"$f":"IF(入力シート!G8=\"\",\"\",入力シート!G8)","v":""},null,null,null,null,null,null,null,null,null,"－",{"$f":"IF(入力シート!K8=\"\",\"\",入力シート!K8)","v":""},null,null,null,null,null,null,null,null,null,null,null,null,null,null,"－",{"$f":"IF(入力シート!P8=\"\",\"\",入力シート!P8)","v":""}]
["役員等名\n（漢字）",null,null,null,null,null,null,null,"役員等名\n（カタカナ）",null,null,null,null,null,null,null,"役職",null,null,null,null,null,null,null,null,null,null,null,"生年月日"]
[]
[]
[null,null,null,null,null,null,null,null,null,null,null,null,null,null,null,null,null,null,null,null,null,null,null,null,null,null,null,null,null,null,null,null,null,"年",null,null,"月",null,null,"日"]
[null,null,null,null,null,null,null,null,null,null,null,null,null,null,null,null,null,null,null,null,null,null,null,null,null,null,null,null,null,null,null,null,null,"年",null,null,"月",null,null,"日"]
[null,null,null,null,null,null,null,null,null,null,null,null,null,null,null,null,null,null,null,null,null,null,null,null,null,null,null,null,null,null,null,null,null,"年",null,null,"月",null,null,"日"]
[null,null,null,null,null,null,null,null,null,null,null,null,null,null,null,null,null,null,null,null,null,null,null,null,null,null,null,null,null,null,null,null,null,"年",null,null,"月",null,null,"日"]
[null,null,null,null,null,null,null,null,null,null,null,null,null,null,null,null,null,null,null,null,null,null,null,null,null,null,null,null,null,null,null,null,null,"年",null,null,"月",null,null,"日"]
[null,null,null,null,null,null,null,null,null,null,null,null,null,null,null,null,null,null,null,null,null,null,null,null,null,null,null,null,null,null,null,null,null,"年",null,null,"月",null,null,"日"]
[null,null,null,null,null,null,null,null,null,null,null,null,null,null,null,null,null,null,null,null,null,null,null,null,null,null,null,null,null,null,null,null,null,"年",null,null,"月",null,null,"日"]
[null,null,null,null,null,null,null,null,null,null,null,null,null,null,null,null,null,null,null,null,null,null,null,null,null,null,null,null,null,null,null,null,null,"年",null,null,"月",null,null,"日"]
[null,null,null,null,null,null,null,null,null,null,null,null,null,null,null,null,null,null,null,null,null,null,null,null,null,null,null,null,null,null,null,null,null,"年",null,null,"月",null,null,"日"]
[null,null,null,null,null,null,null,null,null,null,null,null,null,null,null,null,null,null,null,null,null,null,null,null,null,null,null,null,null,null,null,null,null,"年",null,null,"月",null,null,"日"]
["注１）法人番号は、平成27年10月以降国税庁長官から本社等に通知された13桁の番号を記載してください。\n注２）「役員等」とは、事業主等が個人である場合はその者、法人である場合は役員、団体である場合は代表者、理事等をいい、役員名簿等に記載がある者をいいます。\n注３）個人事業主の場合、事業主本人について記載ください（役職除く）。\n注４）役員等の就任中に氏名の変更等があった場合は、変更前の氏名（旧姓）も併記してください。"]

{"sheet":"新特小訓第９号（実績一覧表）","index":3,"n_rows":239,"n_cols":23,"rows_kept":239,"cut":false,"hidden":false,"merged":[[138,1,142,11],[144,1,151,11],[153,1,154,11],[156,1,159,11],[127,13,128,20],[130,13,130,20],[132,13,142,20],[144,13,146,20],[5,8,5,12],[16,18,16,21],[149,13,154,20],[155,13,155,18],[156,13,156,18],[155,19,156,19],[155,20,156,20],[118,15,120,15],[18,20,21,21],[18,18,21,18],[18,19,21,19],[82,19,84,19],[76,19,78,19],[64,19,66,19],[58,19,60,19],[46,19,48,19],[109,22,111,22],[112,22,114,22],[115,22,117,22],[118,22,120,22],[121,22,123,22],[121,17,123,17],[121,18,123,18],[121,19,123,19],[121,16,123,16],[112,19,114,19],[121,21,123,21],[121,20,123,20],[118,21,120,21],[118,20,120,20],[118,16,120,16],[118,17,120,17],[118,18,120,18],[118,19,120,19],[76,22,78,22],[79,22,81,22],[125,1,125,3],[127,1,129,11],[82,22,84,22],[85,22,87,22],[88,22,90,22],[91,22,93,22],[94,22,96,22],[97,22,99,22],[100,22,102,22],[103,22,105,22],[106,22,108,22],[118,1,120,6],[118,7,120,9],[118,10,120,10],[118,11,120,14],[109,21,111,21],[100,21,102,21],[100,20,102,20],[103,19,105,19],[103,21,105,21],[103,20,105,20],[94,19,96,19],[238,1,243,20],[131,1,133,11],[135,1,136,11],[26,22,27,22],[31,22,33,22],[34,22,36,22],[37,22,39,22],[40,22,42,22],[43,22,45,22],[46,22,48,22],[49,22,51,22],[52,22,54,22],[55,22,57,22],[58,22,60,22],[61,22,63,22],[64,22,66,22],[67,22,69,22],[70,22,72,22],[73,22,75,22],[26,21,27,21],[112,20,114,20],[115,21,117,21],[106,21,108,21],[100,19,102,19],[121,0,123,0],[121,1,123,6],[121,7,123,9],[121,10,123,10],[121,11,123,14],[121,15,123,15],[23,5,23,6],[23,8,23,9],[24,2,24,8],[26,2,26,8],[106,1,108,6],[106,7,108,9],[106,10,108,10],[106,11,108,14],[103,0,105,0],[103,1,105,6],[103,7,105,9],[103,10,105,10],[103,11,105,14],[103,15,105,15],[88,0,90,0],[88,1,90,6],[88,7,90,9],[88,10,90,10],[118,0,120,0],[112,21,114,21],[115,0,117,0],[115,1,117,6],[115,7,117,9],[115,10,117,10],[115,11,117,14],[115,20,117,20],[115,15,117,15],[115,16,117,16],[115,17,117,17],[115,18,117,18],[115,19,117,19],[112,0,114,0],[112,1,114,6],[112,7,114,9],[112,10,114,10],[112,11,114,14],[112,15,114,15],[112,16,114,16],[112,17,114,17],[112,18,114,18],[106,20,108,20],[109,0,111,0],[109,1,111,6],[109,7,111,9],[109,10,111,10],[109,11,111,14],[109,15,111,15],[109,16,111,16],[109,17,111,17],[109,18,111,18],[106,15,108,15],[106,16,108,16],[106,17,108,17],[106,18,108,18],[106,19,108,19],[109,19,111,19],[109,20,111,20],[106,0,108,0],[103,16,105,16],[103,17,105,17],[103,18,105,18],[100,0,102,0],[100,1,102,6],[100,7,102,9],[100,10,102,10],[100,11,102,14],[100,15,102,15],[100,16,102,16],[100,17,102,17],[100,18,102,18],[94,21,96,21],[94,20,96,20],[97,0,99,0],[97,1,99,6],[97,7,99,9],[97,10,99,10],[97,11,99,14],[97,20,99,20],[97,15,99,15],[97,16,99,16],[97,17,99,17],[97,18,99,18],[97,19,99,19],[97,21,99,21],[94,0,96,0],[94,1,96,6],[94,7,96,9],[94,10,96,10],[94,11,96,14],[94,15,96,15],[94,16,96,16],[94,17,96,17],[94,18,96,18],[88,11,90,14],[88,20,90,20],[91,0,93,0],[91,1,93,6],[91,7,93,9],[91,10,93,10],[91,11,93,14],[91,15,93,15],[91,16,93,16],[91,17,93,17],[91,18,93,18],[88,15,90,15],[88,16,90,16],[88,17,90,17],[88,18,90,18],[88,19,90,19],[88,21,90,21],[91,19,93,19],[91,21,93,21],[91,20,93,20],[82,21,84,21],[82,20,84,20],[85,0,87,0],[85,1,87,6],[85,7,87,9],[85,10,87,10],[85,11,87,14],[85,15,87,15],[85,16,87,16],[85,17,87,17],[85,18,87,18],[85,19,87,19],[85,21,87,21],[85,20,87,20],[82,0,84,0],[82,1,84,6],[82,7,84,9],[82,10,84,10],[82,11,84,14],[82,15,84,15],[82,16,84,16],[82,17,84,17],[82,18,84,18],[76,20,78,20],[79,0,81,0],[79,1,81,6],[79,7,81,9],[79,10,81,10],[79,11,81,14],[79,20,81,20],[79,15,81,15],[79,16,81,16],[79,17,81,17],[79,18,81,18],[79,19,81,19],[79,21,81,21],[76,0,78,0],[76,1,78,6],[76,7,78,9],[76,10,78,10],[76,11,78,14],[76,15,78,15],[76,16,78,16],[76,17,78,17],[76,18,78,18],[76,21,78,21],[70,1,72,6],[70,7,72,9],[70,10,72,10],[70,11,72,14],[70,20,72,20],[73,0,75,0],[73,1,75,6],[73,7,75,9],[73,10,75,10],[73,11,75,14],[73,15,75,15],[73,16,75,16],[73,17,75,17],[73,18,75,18],[70,15,72,15],[70,16,72,16],[70,17,72,17],[70,18,72,18],[70,19,72,19],[70,21,72,21],[73,19,75,19],[73,21,75,21],[73,20,75,20],[64,0,66,0],[64,1,66,6],[64,7,66,9],[64,10,66,10],[64,11,66,14],[64,15,66,15],[64,16,66,16],[64,17,66,17],[64,18,66,18],[67,0,69,0],[67,1,69,6],[67,7,69,9],[67,10,69,10],[67,11,69,14],[67,15,69,15],[67,16,69,16],[67,17,69,17],[67,18,69,18],[67,20,69,20],[70,0,72,0],[58,0,60,0],[58,1,60,6],[58,7,60,9],[58,10,60,10],[58,11,60,14],[58,15,60,15],[58,16,60,16],[58,17,60,17],[58,18,60,18],[61,0,63,0],[61,1,63,6],[61,7,63,9],[61,10,63,10],[61,11,63,14],[61,20,63,20],[61,15,63,15],[61,16,63,16],[61,17,63,17],[61,18,63,18],[61,19,63,19],[52,0,54,0],[52,1,54,6],[52,7,54,9],[52,10,54,10],[52,11,54,14],[52,20,54,20],[55,0,57,0],[55,1,57,6],[55,7,57,9],[55,10,57,10],[55,11,57,14],[55,15,57,15],[55,16,57,16],[55,17,57,17],[55,18,57,18],[52,15,54,15],[52,16,54,16],[52,17,54,17],[52,18,54,18],[52,19,54,19],[55,19,57,19],[49,0,51,0],[49,1,51,6],[49,7,51,9],[49,10,51,10],[49,11,51,14],[49,15,51,15],[49,16,51,16],[49,17,51,17],[49,18,51,18],[46,0,48,0],[46,1,48,6],[46,7,48,9],[46,10,48,10],[46,11,48,14],[46,15,48,15],[46,16,48,16],[46,17,48,17],[46,18,48,18],[43,15,45,15],[43,16,45,16],[2,5,3,5],[2,10,3,10],[2,11,3,14],[31,0,31,16],[31,17,33,17],[31,18,33,18],[31,19,33,19],[32,0,33,6],[32,7,33,16],[18,0,18,6],[17,0,17,6],[16,0,16,6],[17,10,17,12],[16,10,16,12],[16,13,17,13],[22,2,22,9],[26,15,27,16],[26,17,27,17],[26,18,27,18],[26,19,27,19],[7,0,11,22],[43,0,45,0],[43,1,45,6],[43,7,45,9],[43,10,45,10],[17,18,17,21],[16,14,17,16],[15,14,15,17],[16,17,17,17],[40,21,42,21],[40,20,42,20],[37,20,39,20],[43,21,45,21],[37,17,39,17],[37,18,39,18],[34,15,36,15],[34,16,36,16],[34,17,36,17],[34,18,36,18],[34,19,36,19],[34,21,36,21],[37,19,39,19],[37,21,39,21],[43,11,45,14],[43,20,45,20],[40,16,42,16],[34,0,36,0],[34,1,36,6],[34,7,36,9],[34,10,36,10],[34,11,36,14],[34,20,36,20],[37,0,39,0],[37,1,39,6],[37,7,39,9],[37,10,39,10],[37,11,39,14],[37,15,39,15],[37,16,39,16],[40,17,42,17],[40,18,42,18],[18,22,21,22],[55,20,57,20],[49,19,51,19],[61,21,63,21],[52,21,54,21],[55,21,57,21],[40,19,42,19],[46,21,48,21],[46,20,48,20],[31,21,33,21],[31,20,33,20],[26,20,27,20],[12,0,12,20],[13,0,13,20],[26,0,26,1],[29,0,29,11],[29,12,29,13],[28,0,28,13],[158,13,160,20],[49,21,51,21],[49,20,51,20],[58,21,60,21],[58,20,60,20],[64,21,66,21],[64,20,66,20],[67,19,69,19],[67,21,69,21],[43,17,45,17],[43,18,45,18],[43,19,45,19],[40,0,42,0],[40,1,42,6],[40,7,42,9],[40,10,42,10],[40,11,42,14],[40,15,42,15]]}
["様式新特小訓第９号 実績一覧表（小規模事業主（自動計算）用様式）(R3.1)"]
[]
["　　　　　        〔  休業  ・  教育訓練  〕  実績一覧表",null,null,null,null,"[",null,"休業",null,null,"］","実績一覧表"]
[null,null,null,null,null,null,null,"教育訓練"]
[null,"今回申請する休業等の初日～末日（判定基礎期間）"]
["初日","令和",null,"年",null,"月",null,"日","～",null,null,null,null,"末日","令和",null,"年",null,"月",null,"日"]
[]
["○本表に記載した内容（③、⑨、⑯、⑱及び⑲を除く）が労使協定に定めるところによったものであることを確認しました。\n○①の休業・教育訓練対象者については、解雇予告をされた者、退職願を提出した者、事業主による退職勧奨に応じた者、併給調整の対象となる助成金の対象労働者であること等により雇用調整助成金の対象とならない者が含まれていないことを誓約します。\n○事業主は、下記の休業等の実施状況について、偽り・誤り、労働基準法に違反する取り扱いがないことを誓約し、下記の休業等の実施状況の確認を公共職業安定所又は労働局が行う場合には協力します。\n○全日休業を行った場合、短時間休業を行った場合、教育訓練を行った場合の休業手当等の助成率については、以下ア～ウのとおりであり、これは休業等の実施に当たり、書面において労使間で予め締結した協定に基づくものであることに間違いないことを誓約します。"]
[]
[]
[]
[]
["協定の当事者である労働組合が事業所の全ての労働者の過半数で組織する労働組合である又は上記協定の当事者である労働者の過半数を代表する者が事業場の全ての労働者の過半数を代表する者であること。(チェックボックスに要チェック）"]
["上記労働者の過半数を代表する者が、労働基準法第41条第２号に規定する監督又は管理の地位にある者でなく、かつ、同法に規定する協定等をする者を選出することを明らかにして実施される投票、挙手等の方法による手続きにより選出された者であつて使用者の意向に基づき選出された者でないこと。(チェックボックスに要チェック）"]
[]
[null,null,null,null,null,null,null,null,null,null,null,null,null,null,"⑲休業手当の支払い率"]
["ア.全日休業の場合の休業手当支払率",null,null,null,null,null,null,null,"％",null,"ア×⑩＋イ×⑮",null,null,"＝",{"$f":"IF(AND(H17<>\"\",S27<>\"\",OR(H18=\"\",T19=\"\")),H17,IF(AND(OR(H17=\"\",S27=\"\"),H18<>\"\",T19<>\"\"),H18,IF(AND(S27=\"\",T19=\"\"),\"休業対象者の実績を入力後表示されます。\",IF(AND(H17=\"\",H18=\"\"),\"\",ROUNDUP((S27*H17+T19*H18)/(S27+T19),0)))))","v":"休業対象者の実績を入力後表示されます。"},null,null,"％","⑱事業所における雇用保険被保険者数"]
["イ.短時間休業の場合の休業手当支払率",null,null,null,null,null,null,null,"％",null,"⑩＋⑮",null,null,null,null,null,null,null,"⑰ 休業・教育訓練対象者数（人） ",null,null,null,{"$f":"IF(COUNTA(B35:G124)=0,\"\",COUNTA(B35:G124))","v":""}]
["ウ.教育訓練の場合の賃金支払率",null,null,null,null,null,null,null,"％",null,null,null,null,null,null,null,null,null,"⑮短時間休業\n（⑪/⑯）\n(日)",{"$f":"IF(T27=\"\",\"\",ROUNDUP(T27/W19,0))","v":""},"⑯代表的な１日の所定労働時間\n\n（時間）"]
[]
[]
["令和",{"$f":"IF('新特小訓第４号（生産指標）'!J16=\"\",\"\",'新特小訓第４号（生産指標）'!J16)","v":""},"年",{"$f":"IF('新特小訓第４号（生産指標）'!M16=\"\",\"\",'新特小訓第４号（生産指標）'!M16)","v":""},"月",{"$f":"IF('新特小訓第４号（生産指標）'!P16=\"\",\"\",'新特小訓第４号（生産指標）'!P16)","v":""},"日"]
[null,"名称",{"$f":"IF('新特小訓第４号（生産指標）'!AG17=\"\",\"\",'新特小訓第４号（生産指標）'!AG17)","v":""}]
["事業主",null,null,"（事業所番号　　　　　　　　　　　　　　　　　",null,{"$f":"IF('新特小訓第６号（申立書）'!N7=\"\",\"\",'新特小訓第６号（申立書）'!N7)","v":""},null,"-",{"$f":"IF(入力シート!K8=\"\",\"\",入力シート!K8)","v":""},null,"-",{"$f":"IF(入力シート!P8=\"\",\"\",入力シート!P8)","v":""},")"]
[null,"氏名",{"$f":"IF('新特小訓第４号（生産指標）'!AG18=\"\",\"\",'新特小訓第４号（生産指標）'!AG18)","v":""}]
["協定をした労働組合の名称又は労働者代表",null,null,null,null,null,null,null,null,null,null,null,null,null,null,null,null,"⑨","⑩","⑪","⑫","⑬","⑭"]
["名称/氏名",null,null,null,null,null,null,null,null,null,null,null,null,null,null,"合計",null,{"$f":"IF(SUM(R35:R124)=0,\"\",ROUNDUP(SUM(R35:R124),0))","v":""},"","",{"$f":"IF(SUM(U35:U124)=0,\"\",ROUNDUP(SUM(U35:U124),0))","v":""},{"$f":"IF(SUM(V35:V124)=0,\"\",ROUNDUP(SUM(V35:V124),0))","v":""},""]
[]
["⑳技能実習生に教育訓練を行った場合、下記届出書を提出しているかご確認ください。"]
["・外国人技能実習機構に「技能実習実施困難時届出書」を提出している。"]
[]
["休業・教育訓練対象者",null,null,null,null,null,null,null,null,null,null,null,null,null,null,null,null,"③\n月間所定労働日数\n（日）","④\n全日休業\n\n（日）","⑤\n短時間休業\n\n(時間)","⑥\n休業手当総額\n(円)","⑦\n教育訓練\n\n(日)","⑧\n教育訓練に係る賃金総額\n(円)"]
["①氏　名",null,null,null,null,null,null,"②雇用保険\n　被保険者番号\n(　　　4桁　　　　　　　-　　　　　　　　6桁　　　　　　　　　-　　　　　1桁)"]
[]
[1,null,null,null,null,null,null,null,null,null,"－",null,null,null,null,"－"]
[]
[]
[2,null,null,null,null,null,null,null,null,null,"－",null,null,null,null,"－"]
[]
[]
[3,null,null,null,null,null,null,null,null,null,"－",null,null,null,null,"－"]
[]
[]
[4,null,null,null,null,null,null,null,null,null,"－",null,null,null,null,"－"]
[]
[]
[5,null,null,null,null,null,null,null,null,null,"－",null,null,null,null,"－"]
[]
[]
[6,null,null,null,null,null,null,null,null,null,"－",null,null,null,null,"－"]
[]
[]
[7,null,null,null,null,null,null,null,null,null,"－",null,null,null,null,"－"]
[]
[]
[8,null,null,null,null,null,null,null,null,null,"－",null,null,null,null,"－"]
[]
[]
[9,null,null,null,null,null,null,null,null,null,"－",null,null,null,null,"－"]
[]
[]
[10,null,null,null,null,null,null,null,null,null,"－",null,null,null,null,"－"]
[]
[]
[11,null,null,null,null,null,null,null,null,null,"－",null,null,null,null,"－"]
[]
[]
[12,null,null,null,null,null,null,null,null,null,"－",null,null,null,null,"－"]
[]
[]
[13,null,null,null,null,null,null,null,null,null,"－",null,null,null,null,"－"]
[]
[]
[14,null,null,null,null,null,null,null,null,null,"－",null,null,null,null,"－"]
[]
[]
[15,null,null,null,null,null,null,null,null,null,"－",null,null,null,null,"－"]
[]
[]
[16,null,null,null,null,null,null,null,null,null,"－",null,null,null,null,"－"]
[]
[]
[17,null,null,null,null,null,null,null,null,null,"－",null,null,null,null,"－"]
[]
[]
[18,null,null,null,null,null,null,null,null,null,"－",null,null,null,null,"－"]
[]
[]
[19,null,null,null,null,null,null,null,null,null,"－",null,null,null,null,"－"]
[]
[]
[20,null,null,null,null,null,null,null,null,null,"－",null,null,null,null,"－"]
[]
[]
[21,null,null,null,null,null,null,null,null,null,"－",null,null,null,null,"－"]
[]
[]
[22,null,null,null,null,null,null,null,null,null,"－",null,null,null,null,"－"]
[]
[]
[23,null,null,null,null,null,null,null,null,null,"－",null,null,null,null,"－"]
[]
[]
[24,null,null,null,null,null,null,null,null,null,"－",null,null,null,null,"－"]
[]
[]
[25,null,null,null,null,null,null,null,null,null,"－",null,null,null,null,"－"]
[]
[]
[26,null,null,null,null,null,null,null,null,null,"－",null,null,null,null,"－"]
[]
[]
[27,null,null,null,null,null,null,null,null,null,"－",null,null,null,null,"－"]
[]
[]
[28,null,null,null,null,null,null,null,null,null,"－",null,null,null,null,"－"]
[]
[]
[29,null,null,null,null,null,null,null,null,null,"－",null,null,null,null,"－"]
[]
[]
[30,null,null,null,null,null,null,null,null,null,"－",null,null,null,null,"－"]
[]
[]
[]
[null,"【記入要領】"]
[]
[1,"　本様式は、休業、教育訓練を行う場合の支給申請時に用います。\n　タイトルの「休業」又は「教育訓練」のうち該当するものの□にチェックして下さい。\n　　",null,null,null,null,null,null,null,null,null,null,8,"　⑮欄には、⑪欄の数値を⑯欄の数値で除した数値（小数点以下切り上げ）を記入して下さい。"]
[]
[]
[null,null,null,null,null,null,null,null,null,null,null,null,9,"　⑰欄には、①欄に記入された対象者数の合計を記入して下さい。"]
[2,"　本様式は、判定基礎期間（賃金締切日の翌日から次の賃金締切日までの期間）ごとに記入して下さい。また、タイトル直下の「判定基礎期間」の欄にその初日と末日を記入して下さい。"]
[null,null,null,null,null,null,null,null,null,null,null,null,10,"　⑱欄には、事業所における「雇用保険被保険者数」（※）を記入して下さい。なお、判定基礎期間内に暦月の末日がない場合は、当該判定基礎期間の末日時点の数を記入して下さい。また、２つの判定基礎期間を通算した期間を一の判定基礎期間として申請する事業所において当該一の判定基礎期間内に暦月の末日が２つある場合、いずれか遅い方の暦月の末日時点の数を記入して下さい。\n（※）「雇用保険被保険者数」とは、休業・教育訓練実施事業所に雇用される雇用保険被保険者のうち、次を除いた者をいいます。\na　解雇を予告されている被保険者、退職願を提出した被保険者、事業主による退職勧奨に応じた被保険者（当該解雇その他離職の日の翌日において安定した職業に就くことが明らかな者を除く）\nb　日雇労働被保険者である者\nc　判定基礎期間において雇用調整助成金と重複して受給することができない助成金等の支給の対象となる被保険者"]
[]
[]
[3,"　①の対象者は、できれば賃金台帳や出勤簿等の順番で記入して下さい。"]
[]
[]
[4,"　判定基礎期間内に、対象者に転出入、被保険者資格の喪失又は解雇の予告等があったときは、その旨及びその事実の生じた年月日を、①欄に氏名と併せて注記するとともに、当該対象者の③～⑧欄については、その事実の生じた日まで（転入の場合はその日の翌日から）の分についてのみ記入し、それ以降（転入の場合はそれ以前）の日の分は記入しないで下さい。"]
[]
[]
[]
[]
[]
[5,"　③欄～⑧欄には、次によってカウントした数値を記入して下さい。\n③欄には判定基礎期間中の各対象者ごとの所定労働日数（判定基礎期間の日数-判定基礎期間中の所定休日数に相当）の合計\n④欄には丸１日休業した日数の合計\n⑤欄には個人及び日ごとの１時間以上の短時間休業の時間（３０分未満は切り捨て。例：１時間40分→1.5）数の合計\n⑥欄には支払った休業手当（全日休業及び短時間休業）の額の合計\n⑦欄には全日を1.0日、半日を0.5日として算定した日数の合計\n⑧欄には支払った教育訓練に係る賃金の額の合計",null,null,null,null,null,null,null,null,null,null,11,"　ア欄～ウ欄には、労使協定において予め定めておいた全日休業及び短時間休業の場合の休業手当の支払い率、教育訓練を実施した際の賃金の支払い率を記入してください。"]
[]
[]
[]
[]
[null,null,null,null,null,null,null,null,null,null,null,null,12,"　⑲欄には、全日休業と短時間休業の休業手当支払い率をそれぞれの休業延日数で加重平均した値（小数点以下切り上げ）を入力してください。具体的な算定例は以下のとおりです。\n例：全日休業の休業手当支払い率：90％\n　　短時間休業の休業手当支払い率：80％\n　　全日休業の延日数：10人日\n　　短時間休業の延日数：３人日"]
[]
[]
[]
[6,"　⑨欄～⑭欄には、同じページの③欄～⑧欄の数字の合計（小数点以下切り上げ）を記入して下さい。"]
[]
[null,null,null,null,null,null,null,null,null,null,null,null,null,"90（％）×10（人日）＋80（％）×３（人日）",null,null,null,null,null,"＝","88（％）"]
[7,"　⑯欄には、就業規則等に規定されている１日の所定労働時間を記入して下さい。なお、それが月ごとに異なる場合は判定基礎期間に係る月（暦月と判定基礎期間が異なる場合は、判定基礎期間の初日が属する月）の所定労働時間を、また労働者ごとに異なる場合は最も適用される人数の多い所定労働時間を記入して下さい。",null,null,null,null,null,null,null,null,null,null,null,"10（人日）＋３（人日）"]
[]
[null,null,null,null,null,null,null,null,null,null,null,null,13,"　⑳欄は、教育訓練を実施した場合のみ、ご確認ください。対象者に技能実習生が含まれる場合は、外国人技能実習機構に「技能実習実施困難時届出書」を提出していることが必要です。"]
[]
[]
[]
[]
[]
[]
[]
[]
[]
[]
[]
[]
[]
[]
[]
[]
[]
[]
[]
[]
[]
[]
[]
[]
[]
[]
[]
[]
[]
[]
[]
[]
[]
[]
[]
[]
[]
[]
[]
[]
[]
[]
[]
[]
[]
[]
[]
[]
[]
[]
[]
[]
[]
[]
[]
[]
[]
[]
[]
[]
[]
[]
[]
[]
[]
[]
[]
[]
[]
[]
[]
[]
[]
[]
[]
[]
[]
[]
[]
[6]

{"sheet":"新特小訓第８号（算定書）","index":4,"n_rows":36,"n_cols":40,"rows_kept":36,"cut":false,"hidden":false,"merged":[[15,1,15,15],[15,16,15,26],[12,39,13,39],[11,1,13,15],[11,28,11,39],[14,1,14,15],[14,16,14,26],[12,28,13,38],[11,22,11,27],[12,16,12,20],[12,22,12,26],[11,16,11,21],[28,0,31,39],[32,0,34,39],[35,0,43,39],[5,1,5,5],[10,1,10,15],[6,16,6,39],[5,35,5,37],[5,6,5,24],[5,25,5,30],[5,31,5,33],[6,1,6,15],[7,16,7,27],[7,1,9,15],[7,28,7,39],[9,16,9,38],[15,28,15,38],[27,0,27,39],[16,16,17,27],[16,28,17,38],[19,1,19,39],[25,16,25,38],[20,1,20,39],[25,1,25,15],[23,1,23,15],[23,16,23,38],[21,1,21,15],[21,16,21,26],[21,28,21,38],[22,1,22,15],[16,1,17,15],[1,0,1,39],[22,16,22,26],[22,28,22,38],[24,1,24,15],[24,16,24,26],[24,28,24,38],[16,39,17,39],[18,16,18,38],[18,1,18,15],[13,16,13,26],[14,28,14,38],[10,16,10,26],[10,28,10,38],[3,0,3,39],[8,16,8,26],[8,28,8,38]]}
[]
["様式新特小訓第８号助成額算定書（新型コロナウイルス感染症関係）（小規模事業主（自動計算）用様式）(R2.8)"]
[]
["雇用調整助成金助成額算定書"]
[]
[null,"（事業所名）",null,null,null,null,{"$f":"IF('新特小訓第６号（申立書）'!H6=\"\",\"\",'新特小訓第６号（申立書）'!H6)","v":""},null,null,null,null,null,null,null,null,null,null,null,null,null,null,null,null,null,null,"（事業所番号）",null,null,null,null,null,{"$f":"IF('新特小訓第６号（申立書）'!N7=\"\",\"\",'新特小訓第６号（申立書）'!N7)","v":""},null,null,"-",{"$f":"IF(入力シート!K8=\"\",\"\",入力シート!K8)","v":""},null,null,"-",{"$f":"IF(入力シート!P8=\"\",\"\",入力シート!P8)","v":""}]
[null,"（１） 解雇等を行わず雇用維持を行っていますか。",null,null,null,null,null,null,null,null,null,null,null,null,null,null,{"$f":"IF(AND(OR('新特小訓第６号（申立書）'!AH43=\"はい\",'新特小訓第６号（申立書）'!AH45=\"はい\"),'新特小訓第６号（申立書）'!AH47=\"はい\"),\"はい\",\"いいえ\")","v":"いいえ"}]
[null,"（２） 判定基礎期間中に支払われた休業手当等の総額\n　様式新特小訓第９号⑫欄及び⑭欄より転記してください。",null,null,null,null,null,null,null,null,null,null,null,null,null,null,"休業（様式新特小訓第９号⑫欄より転記）",null,null,null,null,null,null,null,null,null,null,null,"教育訓練（様式新特小訓第９号⑭欄より転記）"]
[null,null,null,null,null,null,null,null,null,null,null,null,null,null,null,null,{"$f":"IF('新特小訓第９号（実績一覧表）'!U27=\"\",\"\",'新特小訓第９号（実績一覧表）'!U27)","v":""},null,null,null,null,null,null,null,null,null,null,"円",{"$f":"IF('新特小訓第９号（実績一覧表）'!W27=\"\",\"\",'新特小訓第９号（実績一覧表）'!W27)","v":""},null,null,null,null,null,null,null,null,null,null,"円"]
[null,null,null,null,null,null,null,null,null,null,null,null,null,null,null,null,{"$f":"IF(SUM(Q9,AC9)=0,\"\",SUM(Q9,AC9))","v":""},null,null,null,null,null,null,null,null,null,null,null,null,null,null,null,null,null,null,null,null,null,null,"円"]
[null,"（３） 支給見込額（上限比較前）",null,null,null,null,null,null,null,null,null,null,null,null,null,null,{"$f":"IF(Q9=\"\",\"\",IF(Q7=\"はい\",Q9,ROUNDUP(Q9*0.8,0)))","v":""},null,null,null,null,null,null,null,null,null,null,"円",{"$f":"IF(AC9=\"\",\"\",IF(Q7=\"はい\",AC9,ROUNDUP(AC9*0.8,0)))","v":""},null,null,null,null,null,null,null,null,null,null,"円"]
[null,"（４）休業等延日数\n様式新特小訓第９号⑩、⑮及び⑬欄より転記",null,null,null,null,null,null,null,null,null,null,null,null,null,null,"全日休業（様式新特小訓第９号⑩欄より転記）",null,null,null,null,null,"短時間休業（様式新特小訓第９号⑮欄より転記）",null,null,null,null,null,"教育訓練（様式新特小訓第９号⑬欄より転記）"]
[null,null,null,null,null,null,null,null,null,null,null,null,null,null,null,null,{"$f":"'新特小訓第９号（実績一覧表）'!S27","v":""},null,null,null,null,"人日",{"$f":"'新特小訓第９号（実績一覧表）'!T19","v":""},null,null,null,null,"人日",{"$f":"'新特小訓第９号（実績一覧表）'!V27","v":""},null,null,null,null,null,null,null,null,null,null,"人日"]
[null,null,null,null,null,null,null,null,null,null,null,null,null,null,null,null,{"$f":"IF(SUM(Q13,W13)=0,\"\",SUM(Q13,W13))","v":""},null,null,null,null,null,null,null,null,null,null,"人日"]
[null,"（５）助成額の上限額\n　　日額15,000円×（４）",null,null,null,null,null,null,null,null,null,null,null,null,null,null,{"$f":"IF(Q14=\"\",\"\",15000*Q14)","v":""},null,null,null,null,null,null,null,null,null,null,"円",{"$f":"IF(AC13=\"\",\"\",15000*AC13)","v":""},null,null,null,null,null,null,null,null,null,null,"円 "]
[null,"（６） 支給を受けようとする助成額\n　　　（訓練加算額を除く）\n　（３）の額と（５）の額を比較して、低い方の額を記載",null,null,null,null,null,null,null,null,null,null,null,null,null,null,{"$f":"IF(Q11=\"\",\"\",MIN(Q11,Q15))","v":""},null,null,null,null,null,null,null,null,null,null,"円",{"$f":"IF(AC11=\"\",\"\",MIN(AC11,AC15))","v":""},null,null,null,null,null,null,null,null,null,null,"円 "]
[null,"（７） 教育訓練に係る加算額 \n　（４）教育訓練の延日数×2,400円",null,null,null,null,null,null,null,null,null,null,null,null,null,null,"  ",null,null,null,null,null,null,null,null,null,null,null,{"$f":"IF(AC13=\"\",\"\",AC13*2400)","v":""},null,null,null,null,null,null,null,null,null,null,"円 "]
[]
[null,"（８） 支給を受けようとする助成額\n　（６）＋（７）",null,null,null,null,null,null,null,null,null,null,null,null,null,null,{"$f":"IF(SUM(Q16,AC16,AC17)=0,\"\",SUM(Q16,AC16,AC17))","v":""},null,null,null,null,null,null,null,null,null,null,null,null,null,null,null,null,null,null,null,null,null,null,"円 "]
[null,"※（３）欄は小数点以下の端数を切り上げた値を記入して下さい。"]
[null,"労働局確認欄"]
[null,"旧上限額",null,null,null,null,null,null,null,null,null,null,null,null,null,null,{"$f":"IF(Q14=\"\",\"\",IF(OR('新特小訓第９号（実績一覧表）'!$C$6>=3,AND('新特小訓第９号（実績一覧表）'!$C$6=2,'新特小訓第９号（実績一覧表）'!$E$6>=8)),Q14*8370,Q14*8330))","v":""},null,null,null,null,null,null,null,null,null,null,"円",{"$f":"IF(AC13=\"\",\"\",IF(OR('新特小訓第９号（実績一覧表）'!$C$6>=3,AND('新特小訓第９号（実績一覧表）'!$C$6=2,'新特小訓第９号（実績一覧表）'!$E$6>=8)),AC13*8370,AC13*8330))","v":""},null,null,null,null,null,null,null,null,null,null,"円"]
[null,"旧上限額との比較",null,null,null,null,null,null,null,null,null,null,null,null,null,null,{"$f":"IF(Q22=\"\",\"\",IF(Q22<Q11,Q22,Q11))","v":""},null,null,null,null,null,null,null,null,null,null,"円",{"$f":"IF(AC22=\"\",\"\",IF(AC22<AC16,AC22+AC17,AC16+AC17))","v":""},null,null,null,null,null,null,null,null,null,null,"円"]
[null,"旧上限額までの支給額",null,null,null,null,null,null,null,null,null,null,null,null,null,null,{"$f":"IF(SUM(Q23,AC23)=0,\"\",SUM(Q23,AC23))","v":""},null,null,null,null,null,null,null,null,null,null,null,null,null,null,null,null,null,null,null,null,null,null,"円"]
[null,"旧上限額",null,null,null,null,null,null,null,null,null,null,null,null,null,null,{"$f":"IF(OR(Q23=0,Q23=\"\"),\"\",IF(Q22<Q16,Q16-Q23,0))","v":""},null,null,null,null,null,null,null,null,null,null,"円",{"$f":"IF(OR(AC23=0,AC23=\"\"),\"\",IF(AC16>AC22,AC16-AC22,0))","v":""},null,null,null,null,null,null,null,null,null,null,"円"]
[null,"旧上限額超えの支給額",null,null,null,null,null,null,null,null,null,null,null,null,null,null,{"$f":"IF(SUM(Q25,AC25)=0,\"\",SUM(Q25,AC25))","v":""},null,null,null,null,null,null,null,null,null,null,null,null,null,null,null,null,null,null,null,null,null,null,"円"]
[]
[]
["【記入要領】\n１　（１）欄には、解雇等を行わずに雇用維持を行っている場合には「はい」を、行っていない場合には「いいえ」を記入してください。\n２　（２）欄には、判定基礎期間中に実施した休業等に係る休業手当及び賃金の総額を記入して下さい。"]
[]
[]
[]
["３　（３）欄は、次の場合分けにより算定方法が異なりますので、以下のとおりに算定してください。\n●（１）が「はい」の場合、（２）の値をそのまま転記してください。\n●（１）が「いいえ」の場合、（２）の値に8/10を乗じた値を入力してください。"]
[]
[]
["４　（４）欄には、休業及び教育訓練のそれぞれの延日数を様式新特小訓第９号の⑩、⑮及び⑬欄から転記して下さい。\n５　（５）欄には、助成額の上限となる、（４）×助成額単価の上限額（15,000円）を記載してください。\n６　（６）欄には、（３）欄と（５）欄を比較し、低い方を記載してください。\n７　（７）欄には、雇用調整助成金を受給される事業主の方が教育訓練を行った場合において、（７）×2,400円の値を記入して下さい。\n８　（８）欄には（６）欄の休業に係る休業手当と教育訓練にかかる賃金及び（７）欄の教育訓練の加算額に係る額の合計を記入して下さい。この額が支給を受けようとする助成金額になります。\n９　支給額は最終的に労働局において雇用保険データを基に算出された額によって決定され、本様式で算出された金額と異なる場合がありますのでご了承下さい。\n10　本様式については、支給審査を妨げないものであって、かつ、所定の事項が記載されていれば、任意の様式を用いる等しても差し支えありません。"]

{"sheet":"新特小訓第７号（申請書）","index":5,"n_rows":88,"n_cols":66,"rows_kept":88,"cut":false,"hidden":false,"merged":[[24,29,24,36],[24,37,24,38],[24,41,24,42],[24,44,24,45],[28,47,28,50],[13,32,13,64],[12,9,12,10],[12,12,12,13],[12,15,12,16],[36,7,36,11],[36,12,36,16],[36,17,36,20],[35,40,35,64],[35,20,35,38],[28,14,29,18],[28,19,29,19],[29,32,29,37],[12,26,14,29],[12,30,12,31],[33,42,33,64],[31,23,31,39],[31,40,31,65],[28,20,29,26],[28,28,29,31],[28,27,29,27],[26,32,27,65],[28,32,28,37],[28,38,28,40],[28,42,28,45],[28,7,29,13],[24,0,24,7],[24,8,24,9],[12,33,12,34],[1,0,1,43],[16,30,17,64],[19,3,19,13],[19,14,19,21],[19,27,21,36],[19,37,19,38],[19,40,19,41],[19,43,19,46],[19,48,19,64],[20,3,20,13],[20,14,20,22],[20,37,20,38],[20,39,20,64],[21,37,21,38],[21,39,21,63],[12,36,12,39],[12,41,12,64],[14,30,14,31],[14,32,14,63],[13,30,13,31],[39,23,39,39],[39,40,39,65],[40,7,40,19],[40,20,40,22],[6,0,6,63],[9,0,10,44],[12,7,12,8],[22,58,22,62],[25,0,32,6],[25,7,25,12],[25,32,25,36],[25,38,25,39],[25,41,25,43],[29,38,29,40],[29,42,29,45],[29,47,29,50],[32,8,32,10],[32,11,32,12],[32,19,32,21],[32,23,32,37],[24,12,24,13],[24,15,24,16],[31,7,31,22],[24,26,24,27],[33,0,36,6],[33,7,33,19],[33,20,33,36],[34,20,34,36],[26,7,27,31],[24,19,24,20],[45,18,45,32],[46,49,46,65],[24,23,24,24],[42,63,42,65],[41,7,41,65],[42,7,42,62],[34,7,34,19],[35,7,35,19],[37,0,40,6],[37,7,37,22],[37,23,37,39],[37,40,37,65],[38,7,38,19],[38,20,38,22],[38,23,38,36],[38,37,38,39],[38,40,38,62],[41,0,42,6],[38,63,38,65],[53,24,53,34],[53,35,53,45],[53,46,53,52],[53,53,53,65],[32,52,32,65],[30,7,30,15],[30,16,30,39],[30,40,30,65],[36,21,36,35],[33,37,33,41],[34,37,34,41],[34,42,34,65],[32,40,32,51],[43,7,43,17],[43,18,43,32],[43,33,43,47],[46,7,46,15],[46,30,46,39],[46,40,46,41],[46,43,46,44],[46,46,46,47],[40,23,40,38],[39,7,39,22],[52,14,52,23],[47,7,49,13],[47,14,47,65],[48,14,49,65],[43,48,43,65],[44,7,45,17],[44,18,44,32],[44,33,45,47],[44,48,45,65],[52,46,52,52],[52,53,52,65],[51,7,51,13],[51,14,51,20],[51,21,51,23],[50,7,50,13],[50,14,50,20],[50,21,50,23],[52,24,52,34],[52,35,52,45],[43,0,51,6],[53,7,53,13],[53,14,53,20],[53,21,53,23],[40,40,40,65],[59,0,59,4],[60,0,73,65],[74,0,86,65],[87,0,93,65],[54,53,54,64],[55,7,55,14],[55,22,55,26],[56,22,56,26],[57,7,58,13],[57,14,57,65],[58,14,58,65],[54,7,54,13],[54,14,54,20],[54,21,54,23],[54,24,54,33],[54,35,54,44],[54,46,54,51],[52,0,58,6],[52,7,52,13]]}
[]
["様式新特小訓第７号申請書（新型コロナウイルス感染症関係）（小規模事業主（自動計算）用様式）(R3.2)"]
[]
[]
[]
[]
["雇用調整助成金 （休業等） 支給申請書"]
[]
[]
["雇用調整助成金（休業・教育訓練）の支給を受けたいので、裏面記載の注意事項を了解し、次のとおり申請します。\nなお、この申請書の記載事項に係る確認を安定所（労働局）が行う場合には協力します。"]
[]
[]
[null,null,null,null,null,null,null,"令和",null,{"$f":"IF('新特小訓第４号（生産指標）'!J16=\"\",\"\",'新特小訓第４号（生産指標）'!J16)","v":""},null,"年     ",{"$f":"IF('新特小訓第４号（生産指標）'!M16=\"\",\"\",'新特小訓第４号（生産指標）'!M16)","v":""},null,"月 ",{"$f":"IF('新特小訓第４号（生産指標）'!P16=\"\",\"\",'新特小訓第４号（生産指標）'!P16)","v":""},null,"日",null,null,null,null,null,null,null,null,"事業主 ",null,null,null,"住所",null,"〒",{"$f":"IF('新特小訓第４号（生産指標）'!AH16=\"\",\"\",'新特小訓第４号（生産指標）'!AH16)","v":""},null,"－",{"$f":"IF('新特小訓第４号（生産指標）'!AK16=\"\",\"\",'新特小訓第４号（生産指標）'!AK16)","v":""},null,null,null,null,{"$f":"IF('新特小訓第４号（生産指標）'!AP16=\"\",\"\",'新特小訓第４号（生産指標）'!AP16)","v":""}]
[null,null,null,null,null,null,null,null,null,null,null,null,null,null,null,null,null,null,null,null,null,null,null,null,null,null,null,null,null,null,"名称",null,{"$f":"IF('新特小訓第４号（生産指標）'!AG17=\"\",\"\",'新特小訓第４号（生産指標）'!AG17)","v":""}]
[null,null,null,null,null,null,null,null,null,null,null,null,null,null,null,null,null,null,null,null,null,null,null,null,null,null,null,null,null,null,"氏名",null,{"$f":"IF('新特小訓第４号（生産指標）'!AG18=\"\",\"\",'新特小訓第４号（生産指標）'!AG18)","v":""}]
[]
[null,null,null,null,null,null,null,null,null,null,null,null,null,null,null,null,null,null,null,null,null,null,null,null,null,null,null,null,null,null,"申請者が代理人の場合、上欄に事業主の氏名等を、下欄に代理人の氏名等を、申請者が社会保険労務士法施行規則第16条第2項に規定する提出代行者又は同令第16条の3に規定する事務代理者の場合、上欄に事業主の氏名等を、下欄に申請者の氏名等を記載して下さい。"]
[]
[]
[null,null,null,"事業所管轄",null,null,null,null,null,null,null,null,null,null,"労働局長  殿",null,null,null,null,null,null,null,null,null,null,null,null,"代理人又は \n(提出代行者・事務代理者)\n社会保険労務士",null,null,null,null,null,null,null,null,null,"住所",null,"〒",{"$f":"IF('新特小訓第４号（生産指標）'!AO23=\"\",\"\",'新特小訓第４号（生産指標）'!AH16)","v":""},null,"－",{"$f":"IF('新特小訓第４号（生産指標）'!AR23=\"\",\"\",'新特小訓第４号（生産指標）'!AR23)","v":""},null,null,null,null,{"$f":"IF('新特小訓第４号（生産指標）'!AW23=\"\",\"\",'新特小訓第４号（生産指標）'!AW23)","v":""}]
[null,null,"（","事業所管轄",null,null,null,null,null,null,null,null,null,null,"公共職業安定所経由）",null,null,null,null,null,null,null,null,null,null,null,null,null,null,null,null,null,null,null,null,null,null,"名称",null,{"$f":"IF('新特小訓第４号（生産指標）'!AN24=\"\",\"\",'新特小訓第４号（生産指標）'!AN24)","v":""}]
[null,null,null,null,null,null,null,null,null,null,null,null,null,null,null,null,null,null,null,null,null,null,null,null,null,null,null,null,null,null,null,null,null,null,null,null,null,"氏名",null,{"$f":"IF('新特小訓第４号（生産指標）'!AN25=\"\",\"\",'新特小訓第４号（生産指標）'!AN25)","v":""}]
[]
[]
["♦判定基礎期間",null,null,null,null,null,null,null,"令和",null,{"$f":"IF('新特小訓第９号（実績一覧表）'!C6=\"\",\"\",'新特小訓第９号（実績一覧表）'!C6)","v":""},"年",{"$f":"IF('新特小訓第９号（実績一覧表）'!E6=\"\",\"\",'新特小訓第９号（実績一覧表）'!E6)","v":""},null,"月",{"$f":"IF('新特小訓第９号（実績一覧表）'!G6=\"\",\"\",'新特小訓第９号（実績一覧表）'!G6)","v":""},null,"日","～","令和",null,{"$f":"IF('新特小訓第９号（実績一覧表）'!P6=\"\",\"\",'新特小訓第９号（実績一覧表）'!P6)","v":""},"年",{"$f":"IF('新特小訓第９号（実績一覧表）'!R6=\"\",\"\",'新特小訓第９号（実績一覧表）'!R6)","v":""},null,"月",{"$f":"IF('新特小訓第９号（実績一覧表）'!T6=\"\",\"\",'新特小訓第９号（実績一覧表）'!T6)","v":""},null,"日","♦対象期間（始期）",null,null,null,null,null,null,null,"令和",null,null,"年",null,null,"月",null,null,"日"]
["①休業等実施事業所",null,null,null,null,null,null,"(1)名　　　称",null,null,null,null,null,null,null,null,null,null,null,null,null,null,null,null,null,null,null,null,null,null,null,null,"(2)所在地 ",null,null,null,null,"〒",{"$f":"IF('新特小訓第４号（生産指標）'!AH16=\"\",\"\",'新特小訓第４号（生産指標）'!AH16)","v":""},null,"－",{"$f":"IF('新特小訓第４号（生産指標）'!AK16=\"\",\"\",'新特小訓第４号（生産指標）'!AK16)","v":""}]
[null,null,null,null,null,null,null,{"$f":"IF('新特小訓第４号（生産指標）'!AG17=\"\",\"\",'新特小訓第４号（生産指標）'!AG17)","v":""},null,null,null,null,null,null,null,null,null,null,null,null,null,null,null,null,null,null,null,null,null,null,null,null,{"$f":"IF('新特小訓第４号（生産指標）'!AP16=\"\",\"\",'新特小訓第４号（生産指標）'!AP16)","v":""}]
[]
[null,null,null,null,null,null,null,"事業所番号",null,null,null,null,null,null,{"$f":"IF('新特小訓第６号（申立書）'!N7=\"\",\"\",'新特小訓第６号（申立書）'!N7)","v":""},null,null,null,null,"-",{"$f":"IF(入力シート!K8=\"\",\"\",入力シート!K8)","v":""},null,null,null,null,null,null,"-",{"$f":"IF(入力シート!P8=\"\",\"\",入力シート!P8)","v":""},null,null,null,"緊急時の連絡先",null,null,null,null,null,{"$f":"IF(入力シート!G7=\"\",\"\",入力シート!G7)","v":""},null,null,"－",{"$f":"IF(入力シート!J7=\"\",\"\",入力シート!J7)","v":""},null,null,null,"－",{"$f":"IF(入力シート!N7=\"\",\"\",入力シート!N7)","v":""}]
[null,null,null,null,null,null,null,null,null,null,null,null,null,null,null,null,null,null,null,null,null,null,null,null,null,null,null,null,null,null,null,null,"電話番号",null,null,null,null,null,{"$f":"IF('新特小訓第６号（申立書）'!AF60=\"\",\"\",'新特小訓第６号（申立書）'!AF60)","v":""},null,null,"－",{"$f":"IF('新特小訓第６号（申立書）'!AI60=\"\",\"\",'新特小訓第６号（申立書）'!AI60)","v":""},null,null,null,"－",{"$f":"IF('新特小訓第６号（申立書）'!AM60=\"\",\"\",'新特小訓第６号（申立書）'!AM60)","v":""}]
[null,null,null,null,null,null,null,"(3)事務担当者職氏名",null,null,null,null,null,null,null,null,{"$f":"IF(入力シート!G10=\"\",\"\",入力シート!G10)","v":""}]
[null,null,null,null,null,null,null,"(5)賃金締切日",null,null,null,null,null,null,null,null,null,null,null,null,null,null,null,"(6) 判定基礎期間の月末時点の雇用保険被保険者数"]
[null,null,null,null,null,null,null,null,"a毎月(",null,null,{"$f":"IF(入力シート!J11=\"\",\"\",入力シート!J11)","v":""},null,")日・ｂその他( ",null,null,null,null,null,{"$f":"IF(入力シート!S11=\"\",\"\",入力シート!S11)","v":""},null,null,") ",{"$f":"IF('新特小訓第９号（実績一覧表）'!W17=\"\",\"\",'新特小訓第９号（実績一覧表）'!W17)","v":""},null,null,null,null,null,null,null,null,null,null,null,null,null,null,"人"]
["\n\n②支払\n　方法\n",null,null,null,null,null,null,"国庫金振込（取引金融機関店舗名：",null,null,null,null,null,null,null,null,null,null,null,null,{"$f":"IF(入力シート!G12=\"\",\"\",入力シート!G12)","v":""},null,null,null,null,null,null,null,null,null,null,null,null,null,null,null,null,"／支店名:",null,null,null,null,{"$f":"IF(入力シート!G14=\"\",\"\",入力シート!G14)","v":""},null,null,null,null,null,null,null,null,null,null,null,null,null,null,null,null,null,null,null,null,null,null,"）"]
[null,null,null,null,null,null,null,"金融機関コード：",null,null,null,null,null,null,null,null,null,null,null,null,{"$f":"IF(入力シート!G13=\"\",\"\",入力シート!G13)","v":""},null,null,null,null,null,null,null,null,null,null,null,null,null,null,null,null,"支店コード:",null,null,null,null,{"$f":"IF(入力シート!G15=\"\",\"\",入力シート!G15)","v":""}]
[null,null,null,null,null,null,null,"口座名義（フリガナ）：",null,null,null,null,null,null,null,null,null,null,null,null,{"$f":"IF(入力シート!G18=\"\",\"\",入力シート!G18)","v":""},null,null,null,null,null,null,null,null,null,null,null,null,null,null,null,null,null,null,"(",{"$f":"IF(入力シート!S18=\"\",\"\",入力シート!S18)","v":""},null,null,null,null,null,null,null,null,null,null,null,null,null,null,null,null,null,null,null,null,null,null,null,null,")"]
[null,null,null,null,null,null,null,"口座の種類:",null,null,null,null,{"$f":"IF(入力シート!G16=\"\",\"\",入力シート!G16)","v":""},null,null,null,null,"口座番号:",null,null,null,{"$f":"IF(入力シート!G17=\"\",\"\",入力シート!G17)","v":""}]
["③休業等の規模",null,null,null,null,null,null,"(1) 月間休業延日数\n（様式新特小訓第８号の(4)の休業日数計） ",null,null,null,null,null,null,null,null,null,null,null,null,null,null,null,"(2) 月間教育訓練延日数\n（様式新特小訓第８号の(4)の教育訓練日数） ",null,null,null,null,null,null,null,null,null,null,null,null,null,null,null,null,"(3) 月間休業等延日数 [(1)+(2)] "]
[null,null,null,null,null,null,null,{"$f":"IF(AND('新特小訓第８号（算定書）'!Q13=\"\",'新特小訓第８号（算定書）'!W13=\"\"),\"\",SUM('新特小訓第８号（算定書）'!Q13,'新特小訓第８号（算定書）'!W13))","v":""},null,null,null,null,null,null,null,null,null,null,null,null,"人・日 ",null,null,{"$f":"IF('新特小訓第８号（算定書）'!AC13=\"\",\"\",'新特小訓第８号（算定書）'!AC13)","v":""},null,null,null,null,null,null,null,null,null,null,null,null,null,"人・日 ",null,null,{"$f":"IF(AND(H39=\"\",X39=\"\"),\"\",SUM(H39,X39))","v":""},null,null,null,null,null,null,null,null,null,null,null,null,null,null,null,null,null,null,null,null,null,null,"人・日 "]
[null,null,null,null,null,null,null,"(4) 月間所定労働延日数 ",null,null,null,null,null,null,null,null,null,null,null,null,null,null,null,"(5) 月間平均所定労働日数 [(4)／①(6)] \n（小数点第2位以下切り捨て）",null,null,null,null,null,null,null,null,null,null,null,null,null,null,null,null," (6) 休業規模  [(3)／(4)×100]\n（小数点第2位以下切り捨て） "]
[null,null,null,null,null,null,null,{"$f":"IF('新特小訓第７号（申請書）'!X33=\"\",\"\",('新特小訓第９号（実績一覧表）'!R27/'新特小訓第９号（実績一覧表）'!W18)*'新特小訓第７号（申請書）'!X33)","v":""},null,null,null,null,null,null,null,null,null,null,null,null,"人・日 ",null,null,{"$f":"IF(OR(X33=\"\",X33=0),\"\",ROUNDDOWN(H41/X33,1))","v":""},null,null,null,null,null,null,null,null,null,null,null,null,null,null,null,"日 ",{"$f":"IF(OR(H41=\"\",H41=0),\"\",ROUNDDOWN(AO39/H41*100,1))","v":""}]
["④助成額の算定",null,null,null,null,null,null,"(1) 支給を受けようとする助成金額(様式新特小訓第８号（8）)"]
[null,null,null,null,null,null,null,{"$f":"IF('新特小訓第８号（算定書）'!Q19=\"\",\"\",'新特小訓第８号（算定書）'!Q19)","v":""},null,null,null,null,null,null,null,null,null,null,null,null,null,null,null,null,null,null,null,null,null,null,null,null,null,null,null,null,null,null,null,null,null,null,null,null,null,null,null,null,null,null,null,null,null,null,null,null,null,null,null,null,null,null,null,"円"]
["※労働局処理欄",null,null,null,null,null,null,"[G]労働保険料の滞納状況",null,null,null,null,null,null,null,null,null,null,null,null,null,null,null,null,null,null,null,null,null,null,null,null,null,"[H]過去の不正受給 ",null,null,null,null,null,null,null,null,null,null,null,null,null,null,"[I]労働関係法令違反の有無 "]
[null,null,null,null,null,null,null,"（システムから確認） "]
[]
[null,null,null,null,null,null,null,"●助成金支給番号 ",null,null,null,null,null,null,null,null,null,null,null,null,null,null,null,null,null,null,null,null,null,null,"●支給決定年月日 ",null,null,null,null,null,null,null,null,null,null,null,"年     ",null,null,"月 ",null,null,"日"]
[null,null,null,null,null,null,null,"労働局決裁欄 ",null,null,null,null,null,null,"（局長）       （部長・      ）        （課長・      ）          （補佐・      ）         （係長・      ）       （           ） "]
[null,null,null,null,null,null,null,null,null,null,null,null,null,null,"  "]
[]
[null,null,null,null,null,null,null,"旧上限額までの支給額",null,null,null,null,null,null,{"$f":"IF('新特小訓第８号（算定書）'!Q24=\"\",\"\",'新特小訓第８号（算定書）'!Q24)","v":""},null,null,null,null,null,null,"円"]
[null,null,null,null,null,null,null,"旧上限額超えの支給額",null,null,null,null,null,null,{"$f":"IF('新特小訓第８号（算定書）'!Q26=\"\",\"\",'新特小訓第８号（算定書）'!Q26)","v":""},null,null,null,null,null,null,"円"]
["※ 安定所処理欄",null,null,null,null,null,null,"区       分 ",null,null,null,null,null,null,"[Ａ]判定基礎期間\n助成対象休業等延日数 ",null,null,null,null,null,null,null,null,null,"[Ｂ]判定基礎期間\n暦月末日対象労働者数 ",null,null,null,null,null,null,null,null,null,null,"[Ｃ]   [Ａ]／[Ｂ] ",null,null,null,null,null,null,null,null,null,null,"[Ｄ]前判定基礎\n期間後残日数 ",null,null,null,null,null,null,"[Ｅ]残日数 "]
[null,null,null,null,null,null,null,"休業等助成金 ",null,null,null,null,null,null,null,null,null,null,null,null,null,"人・日 ",null,null,"  ",null,null,null,null,null,null,null,null,null,null,"  ",null,null,null,null,null,null,null,null,null,null,"  ",null,null,null,null,null,null,"  "]
[null,null,null,null,null,null,null,"教育訓練分助成金 ",null,null,null,null,null,null,null,null,null,null,null,null,null,"人・日 ",null,null,null,null,null,null,null,null,null,null,null,null,"人 ",null,null,null,null,null,null,null,null,null,null,"日 ",null,null,null,null,null,null,"日 ",null,null,null,null,null,null,null,null,null,null,null,null,"日 "]
[null,null,null,null,null,null,null,"[F]支給判定金額  ",null,null,null,null,null,null,null,null,null,null,null,null,null,null,"（休業）",null,null,null,null,null,null,null,null,null,null,null,null,null,null,null,null,null,null,null,null,null,null,null,null,null,null,null,null,"円 "]
[null,null,null,null,null,null,null,null,null,null,null,null,null,null,null,null,null,null,null,null,null,null,"（教育訓練）",null,null,null,null,null,null,null,null,null,null,null,null,null,null,null,null,null,null,null,null,null,null,null,null,null,null,null,null,"円 "]
[null,null,null,null,null,null,null,"安定所決裁欄 ",null,null,null,null,null,null,"（所長）      　（部長・次長） 　　     （課長・統括） 　　    （上席・係長）     　　  （職業指導官） 　　   （担当）"]
[null,null,null,null,null,null,null,null,null,null,null,null,null,null,"  "]
["注意事項"]
["【記入要領】\n１　本様式は一つの判定基礎期間ごとに別葉にして記入して下さい。二又は三の連続する判定基礎期間について支給申請する場合、２箇月目又は３箇月目の判定基礎期間の分については、◆判定基礎期間欄、①(6)欄、③欄及び④欄のみの記入で差し支えありません。\nまた、対象期間（始期）には、対象期間の初日を記入してください。「対象期間」とは、事業主が指定した雇用調整の初日から起算して１年を経過する日までの期間をいいます（ただし、対象期間の初日が令和２年１月24日から令和２年６月30日までの間にある特例事業主は令和３年６月30日まで）。（例）令和２年４月１日から休業を行っており、その日以降の休業について雇用調整助成金を申請している場合、対象期間は令和２年４月１日から令和３年６月30日までとなり、対象期間（始期）は令和２年４月１日となります。\n２　①(6)欄には、「判定基礎期間の月末時点の雇用保険被保険者数」（※）を記入して下さい。なお、判定基礎期間内に暦月の末日がない場合は、当該判定基礎期間の末日時点の数を記入して下さい。また、２つの判定基礎期間を通算した期間を一の判定基礎期間として申請する事業所において当該一の判定基礎期間内に暦月の末日が２つある場合、いずれか遅い方の暦月の末日時点の数を記入して下さい。\n（※）「判定基礎期間の月末時点の雇用保険被保険者数」とは、休業・教育訓練実施事業所に雇用される雇用保険被保険者のうち、次を除いた者をいいます。\na　解雇を予告されている被保険者、退職願を提出した被保険者、事業主による退職勧奨に応じた被保険者（当該解雇その他離職の日の翌日において安定した職業に就くことが明らかな者を除く）\nb　日雇労働被保険者である者\nc　判定基礎期間において雇用調整助成金と重複して受給することができない助成金等の支給の対象となる被保険者\n３　②欄には、振込先を記入してください。なお、変更の無い場合は、２回目以降の申請の際は記入の必要はありません。\n４　③(1)欄には、様式新特小訓第８号（４）の全日休業と短時間休業の日数の計を、また③(2)欄には、同様式の（４）教育訓練の日数を記入して下さい。\n５　③(4)欄には、休業・教育訓練実施事業所のすべての対象労働者の判定基礎期間における所定労働日の数の合計を記入して下さい。\n６　③(6)欄は、従業員２人あたり１日以上休業等していることを確認できれば、当該要件を満たしているものとします。\n７　④(1)欄には、様式新特小訓第８号(８)の額を記入して下さい。\n"]
[]
[]
[]
[]
[]
[]
[]
[]
[]
[]
[]
[]
[]
["【支給申請にあたっての注意事項】\n　　雇用調整助成金の支給申請は、本様式及び「雇用調整助成金ガイドブック」の「支給申請に必要な書類」に示す添付書類を用いて次によって提出して下さい。\n１　休業又は教育訓練を実施し、当該休業に係る手当（労働基準法第26条の規定に違反していない場合）又は当該教育訓練に係る賃金を休業等協定どおりに支払った場合に提出して下さい。\n２　休業又は教育訓練を実施した事業所（以下「休業・教育訓練実施事業所」という。）ごとに提出して下さい。\n３　一つの判定基礎期間又は二つ以上の連続した判定基礎期間（支給対象期間）毎に提出して下さい。\n４　判定基礎期間の末日の翌日から、２か月以内に（ただし、天災その他その期間内に申請しなかったことについてやむを得ない理由があるときは、当該理由のやんだ後１か月が経過する日までにその理由を記入した書面を添えて）提出して下さい。\n５　代理人が申請する場合にあっては、委任状（写）を添付して下さい。\n６　雇用維持要件における「解雇等(解雇予告を含む。)」とは、以下を指します。\n　①　事業主に直接雇用される期間の定めのない労働契約を締結する労働者の場合、解雇又は退職勧奨（労働者が同意した場合も含む。）等により事業主都合による離職をさせること\n　②　事業主に直接雇用される期間の定めのある労働契約を締結する労働者の場合、解雇と見なされる労働者の雇止め、中途契約解除等により事業主都合による離職をさせること\n　③　対象事業主の事業所に役務の提供を行っている派遣労働者の場合、労働者派遣契約期間満了前の事業主都合による契約解除\n　なお、以上については、コロナウイルス感染症を理由とする解雇も含みます。"]
[]
[]
[]
[]
[]
[]
[]
[]
[]
[]
[]
[]
["【受給にあたっての注意事項】\n１　雇用調整助成金は、併給調整の対象となる助成金等と同時に支給対象となりません。またそれ以外の助成金等についても、本支給申請の対象となる休業等について支給を受けている場合は支給対象とならない場合があります。\n２　偽りその他不正の行為により本来受けることのできない助成金の支給を受け又は受けようとしたことが判明した場合には、不正行為により本来受けることのできない助成金を受け又は受けようとした最初の判定基礎期間以降に支給したすべての助成金を返還していただくとともに、当該期間以降に受けようとした助成金については不支給とさせていただきます。\n３　２によらず、助成金の支給すべき額を超えて助成金の支給を受けた場合には、その支給すべき額を超えて支払われた部分の額を返還していただきます。\n４　労働基準法第２６条の規定に違反して支払った手当について助成金の支給を受けた場合には、助成金のうち当該違反して支払った手当に係る部分の額を返還していただきます。\n５　助成金の受給に当たっては、リーフレット等に記載されているもののほか、各種要件がありますので、本支給申請前に都道府県労働局又は公共職業安定所に確認して下さい。\n"]

{"sheet":"被保険者以外の方向け様式→","index":6,"n_rows":0,"n_cols":0,"rows_kept":0,"cut":false,"hidden":false,"merged":[]}

{"sheet":"新小第２号の２（3）（実績一覧表）","index":7,"n_rows":224,"n_cols":24,"rows_kept":224,"cut":false,"hidden":false,"merged":[[102,20,104,20],[99,19,101,19],[99,20,101,20],[96,20,98,20],[93,19,95,19],[93,20,95,20],[150,13,155,20],[156,13,156,18],[114,17,116,17],[114,18,116,18],[114,19,116,19],[114,20,116,20],[131,13,145,20],[114,0,116,0],[114,1,116,16],[117,1,119,16],[120,1,122,16],[117,19,119,19],[117,20,119,20],[120,0,122,0],[117,0,119,0],[117,17,119,17],[117,18,119,18],[223,1,228,20],[124,1,124,3],[126,1,128,11],[130,1,132,11],[120,17,122,17],[120,18,122,18],[120,19,122,19],[120,20,122,20],[157,13,157,18],[156,19,157,19],[156,20,157,20],[134,1,138,11],[140,1,145,11],[147,13,148,20],[147,1,148,11],[126,13,127,20],[129,13,129,20],[150,1,154,11],[111,0,113,0],[111,17,113,17],[111,18,113,18],[108,17,110,17],[108,18,110,18],[108,19,110,19],[108,20,110,20],[105,19,107,19],[105,20,107,20],[108,0,110,0],[105,0,107,0],[105,17,107,17],[105,18,107,18],[111,19,113,19],[111,20,113,20],[105,1,107,16],[108,1,110,16],[111,1,113,16],[102,0,104,0],[99,0,101,0],[99,17,101,17],[99,18,101,18],[99,1,101,16],[102,1,104,16],[96,17,98,17],[96,18,98,18],[96,19,98,19],[96,0,98,0],[102,17,104,17],[102,18,104,18],[102,19,104,19],[93,0,95,0],[93,17,95,17],[93,18,95,18],[93,1,95,16],[96,1,98,16],[90,17,92,17],[90,18,92,18],[90,19,92,19],[90,20,92,20],[90,0,92,0],[87,0,89,0],[87,17,89,17],[87,18,89,18],[87,1,89,16],[90,1,92,16],[84,17,86,17],[84,18,86,18],[84,19,86,19],[84,20,86,20],[87,19,89,19],[87,20,89,20],[81,19,83,19],[81,20,83,20],[84,0,86,0],[81,0,83,0],[81,17,83,17],[81,18,83,18],[81,1,83,16],[84,1,86,16],[78,17,80,17],[78,18,80,18],[78,19,80,19],[78,20,80,20],[75,19,77,19],[75,20,77,20],[78,0,80,0],[75,0,77,0],[75,17,77,17],[75,18,77,18],[75,1,77,16],[78,1,80,16],[72,17,74,17],[72,18,74,18],[72,19,74,19],[72,20,74,20],[69,19,71,19],[69,20,71,20],[72,0,74,0],[69,0,71,0],[69,17,71,17],[69,18,71,18],[69,1,71,16],[72,1,74,16],[66,17,68,17],[66,18,68,18],[66,19,68,19],[66,20,68,20],[63,19,65,19],[63,20,65,20],[66,0,68,0],[63,0,65,0],[63,17,65,17],[63,18,65,18],[63,1,65,16],[66,1,68,16],[60,17,62,17],[60,18,62,18],[60,19,62,19],[60,20,62,20],[57,19,59,19],[57,20,59,20],[60,0,62,0],[57,0,59,0],[57,17,59,17],[57,18,59,18],[57,1,59,16],[60,1,62,16],[54,17,56,17],[54,18,56,18],[54,19,56,19],[54,20,56,20],[51,19,53,19],[51,20,53,20],[54,0,56,0],[51,0,53,0],[51,17,53,17],[51,18,53,18],[51,1,53,16],[54,1,56,16],[48,17,50,17],[48,18,50,18],[48,19,50,19],[48,20,50,20],[48,1,50,16],[45,19,47,19],[45,20,47,20],[48,0,50,0],[45,0,47,0],[45,17,47,17],[45,18,47,18],[45,1,47,16],[42,17,44,17],[42,18,44,18],[42,19,44,19],[42,20,44,20],[39,19,41,19],[39,20,41,20],[42,0,44,0],[39,0,41,0],[39,17,41,17],[39,18,41,18],[39,1,41,16],[42,1,44,16],[36,17,38,17],[36,18,38,18],[36,19,38,19],[36,20,38,20],[36,0,38,0],[33,17,35,17],[33,18,35,18],[33,19,35,19],[33,20,35,20],[33,0,35,0],[33,1,35,16],[36,1,38,16],[27,19,28,19],[27,20,28,20],[30,0,30,16],[30,17,32,17],[30,18,32,18],[30,19,32,19],[30,20,32,20],[24,5,24,6],[24,8,24,9],[25,2,25,8],[27,2,27,8],[27,15,28,16],[27,17,28,17],[27,18,28,18],[31,0,32,16],[19,18,22,19],[18,14,19,14],[18,15,19,15],[27,0,27,1],[19,20,22,20],[19,16,22,16],[19,17,22,17],[23,2,23,9],[2,11,3,14],[2,5,3,10],[5,8,5,12],[18,0,18,6],[19,0,19,6],[17,16,17,19],[18,16,18,19],[8,0,12,20],[18,10,18,12],[19,10,19,12],[18,13,19,13],[16,14,17,15],[13,0,13,18],[14,0,14,18]]}
["様式新小第2号の２(3) 実績一覧表（小規模事業主（自動計算）用様式）(R3.1)"]
[]
[null,null,null,null,null,"休業",null,null,null,null,null,"実績一覧表"]
[]
[null,"今回申請する休業の初日～末日（判定基礎期間）"]
["初日","令和",{"$f":"IF('新特小訓第９号（実績一覧表）'!C6=\"\",\"\",'新特小訓第９号（実績一覧表）'!C6)","v":""},"年",{"$f":"IF('新特小訓第９号（実績一覧表）'!E6=\"\",\"\",'新特小訓第９号（実績一覧表）'!E6)","v":""},"月",{"$f":"IF('新特小訓第９号（実績一覧表）'!G6=\"\",\"\",'新特小訓第９号（実績一覧表）'!G6)","v":""},"日","～",null,null,null,null,"末日","令和",{"$f":"IF('新特小訓第９号（実績一覧表）'!P6=\"\",\"\",'新特小訓第９号（実績一覧表）'!P6)","v":""},"年",{"$f":"IF('新特小訓第９号（実績一覧表）'!R6=\"\",\"\",'新特小訓第９号（実績一覧表）'!R6)","v":""},"月",{"$f":"IF('新特小訓第９号（実績一覧表）'!T6=\"\",\"\",'新特小訓第９号（実績一覧表）'!T6)","v":""},"日"]
[]
[]
["○事業主及び協定をした労働者代表は、本表に記載した内容（②、⑥、⑩、⑬及び⑭を除く）が労使協定に定めるところによったものであることを確認し、①の休業対象者については、解雇予告をされたこと、退職願を提出したこと、事業主による退職勧奨に応じたこと、併給調整の対象となる助成金を受給していること等により対象とならない者が含まれていないことを誓約します。\n○また、事業主は、上記の実施状況の確認を公共職業安定所又は労働局が行う場合には協力し、上記について、偽り・誤り、労働基準法に違反する取り扱いがないことを誓約します。 \n○全日休業を行った場合、短時間休業を行った場合の休業手当の助成率については、以下のとおりであり、これは休業の実施に当たり、労使間で予め締結した協定に基づくものであることに間違いありません。"]
[]
[]
[]
[]
["協定の当事者である労働組合が事業所の全ての労働者の過半数で組織する労働組合である又は上記協定の当事者である労働者の過半数を代表する者が事業場の全ての労働者の過半数を代表する者であること。(チェックボックスに要チェック）"]
["上記労働者の過半数を代表する者が、労働基準法第41条第２号に規定する監督又は管理の地位にある者でなく、かつ、同法に規定する協定等をする者を選出することを明らかにして実施される投票、挙手等の方法による手続きにより選出された者であつて使用者の意向に基づき選出された者でないこと。(チェックボックスに要チェック）"]
[]
[null,null,null,null,null,null,null,null,null,null,null,null,null,null,"⑭休業手当の支払い率"]
[null,null,null,null,null,null,null,null,null,null,null,null,null,null,null,null,"⑬事業所における雇用保険被保険者以外の労働者数"]
["ア.全日休業の場合の休業手当支払率",null,null,null,null,null,null,null,"％",null,"ア×⑦＋イ×⑪",null,null,"=",{"$f":"IF(AND(H19<>\"\",S28<>\"\",OR(H20=\"\",R20=\"\")),H19,IF(AND(OR(H19=\"\",S28=\"\"),H20<>\"\",R20<>\"\"),H20,IF(AND(S28=\"\",R20=\"\"),\"休業対象者の実績を入力後表示されます。\",IF(AND(H19=\"\",H20=\"\"),\"\",ROUNDUP((S28*H19+R20*H20)/(S28+R20),0)))))","v":"休業対象者の実績を入力後表示されます。"},"％","⑫休業対象者数（人） ",null,null,null,{"$f":"IF(COUNTA(B34:G123)=0,\"\",COUNTA(B34:G123))","v":""}]
["イ.短時間休業の場合の休業手当支払率",null,null,null,null,null,null,null,"％",null,"⑦＋⑪",null,null,null,null,null,"⑪短時間休業\n（⑧/⑩）\n(日)",{"$f":"IF(T28=\"\",\"\",ROUNDUP(T28/U20,0))","v":""},"⑩代表的な１日の所定労働時間\n\n（時間）"]
[]
[]
["令和",{"$f":"IF('新特小訓第４号（生産指標）'!J16=\"\",\"\",'新特小訓第４号（生産指標）'!J16)","v":""},"年",{"$f":"IF('新特小訓第４号（生産指標）'!M16=\"\",\"\",'新特小訓第４号（生産指標）'!M16)","v":""},"月",{"$f":"IF('新特小訓第４号（生産指標）'!P16=\"\",\"\",'新特小訓第４号（生産指標）'!P16)","v":""},"日"]
[null,"名称",{"$f":"IF(入力シート!G2=\"\",\"\",入力シート!G2)","v":""}]
["事業主",null,null,"（事業所番号　　　　　　　　　　　　　　　　　",null,{"$f":"IF(入力シート!G8=\"\",\"\",入力シート!G8)","v":""},null,"-",{"$f":"IF(入力シート!K8=\"\",\"\",入力シート!K8)","v":""},null,"-",{"$f":"IF(入力シート!P8=\"\",\"\",入力シート!P8)","v":""},")"]
[null,"氏名",{"$f":"IF(入力シート!G3=\"\",\"\",入力シート!G3)","v":""}]
["協定をした労働組合の名称又は労働者代表",null,null,null,null,null,null,null,null,null,null,null,null,null,null,null,null,"⑥","⑦","⑧","⑨"]
["名称/氏名",null,null,null,null,null,null,null,null,null,null,null,null,null,null,"合計",null,{"$f":"IF(SUM(R34:R123)=0,\"\",ROUNDUP(SUM(R34:R123),0))","v":""},{"$f":"IF(SUM(S34:S123)=0,\"\",ROUNDUP(SUM(S34:S123),0))","v":""},{"$f":"IF(SUM(T34:T123)=0,\"\",ROUNDUP(SUM(T34:T123),0))","v":""},{"$f":"IF(SUM(U34:U123)=0,\"\",ROUNDUP(SUM(U34:U123),0))","v":""}]
[]
[]
["休業対象者",null,null,null,null,null,null,null,null,null,null,null,null,null,null,null,null,"②\n月間所定労働日数\n（日）","③\n全日休業\n\n（日）","④\n短時間休業\n\n(時間)","⑤\n休業手当総額\n(円)"]
["①氏　名"]
[]
[1]
[]
[]
[2]
[]
[]
[3]
[]
[]
[4]
[]
[]
[5]
[]
[]
[6]
[]
[]
[7]
[]
[]
[8]
[]
[]
[9]
[]
[]
[10]
[]
[]
[11]
[]
[]
[12]
[]
[]
[13]
[]
[]
[14]
[]
[]
[15]
[]
[]
[16]
[]
[]
[17]
[]
[]
[18]
[]
[]
[19]
[]
[]
[20]
[]
[]
[21]
[]
[]
[22]
[]
[]
[23]
[]
[]
[24]
[]
[]
[25]
[]
[]
[26]
[]
[]
[27]
[]
[]
[28]
[]
[]
[29]
[]
[]
[30]
[]
[]
[]
[null,"【記入要領】"]
[]
[1,"　本様式は、判定基礎期間（賃金締切日の翌日から次の賃金締切日までの期間）ごとに記入して下さい。また、タイトル直下の「判定基礎期間」の欄にその初日と末日を記入して下さい。",null,null,null,null,null,null,null,null,null,null,7,"　⑪欄には、⑧欄の数値を⑩欄の数値で除した数値（小数点以下切り上げ）を記入して下さい。"]
[null,null,null,null,null,null,null,null,null,null,null,null,null,null,null,null,null,null,null,null,null,null,null,"　"]
[]
[null,null,null,null,null,null,null,null,null,null,null,null,8,"　⑫欄には、①欄に記入された対象者数の合計を記入して下さい。"]
[2,"　①の対象者は、できれば賃金台帳や出勤簿等の順番で記入して下さい。"]
[null,null,null,null,null,null,null,null,null,null,null,null,9,"　⑬欄には、事業所における「雇用保険被保険者以外の労働者数」（※）を記入して下さい。なお、判定基礎期間内に暦月の末日がない場合は、当該判定基礎期間の末日時点の数を記入して下さい。また、２つの判定基礎期間を通算した期間を一の判定基礎期間として申請する事業所において当該一の判定基礎期間内に暦月の末日が２つある場合、いずれか遅い方の暦月の末日時点の数を記入して下さい。\n（※）「雇用保険被保険者以外の労働者数」とは、休業実施事業所に雇用される雇用保険の被保険者でない労働者のうち、次を除いた者をいいます。\na　雇用関係の確認が出来ないもの\nb　法人の取締役及び合名会社等の役員、監査役、協同組合等の社団又は財団の役員等\nc　解雇を予告されている者、退職願を提出した者、事業主による退職勧奨に応じた者（当該解雇その他離職の日の翌日において安定した職業に就くことが明らかな者を除く）\nd　日雇労働者\ne　地方公営企業法（昭和27年法律第292号）第２条の規定の適用を受ける地方公共団体が経営する企業において、公務員の身分を有する者"]
[]
[]
[3,"　判定基礎期間内に、対象者に転出入、被保険者資格の喪失又は解雇の予告等があったときは、その旨及びその事実の生じた年月日を、①欄に氏名と併せて注記するとともに、当該対象者の②～⑤欄については、その事実の生じた日まで（転入の場合はその日の翌日から）の分についてのみ記入し、それ以降（転入の場合はそれ以前）の日の分は記入しないで下さい。"]
[]
[]
[]
[]
[]
[4,"　②欄～⑤欄には、次によってカウントした数値を記入して下さい。\n②欄には判定基礎期間中の各対象者ごとの所定労働日数（判定基礎期間の日数-判定基礎期間中の所定休日数に相当）の合計\n③欄には丸１日休業した日数の合計\n④欄には個人及び日ごとの１時間以上の短時間休業の時間（３０分未満は切り捨て。例：１時間40分→1.5）数の合計\n⑤欄には支払った休業手当（全日休業及び短時間休業）の額の合計"]
[]
[]
[]
[]
[]
[]
[5,"　⑥欄～⑨欄には、同じページの②欄～⑤欄の数字の合計（小数点以下切り上げ）を記入して下さい。",null,null,null,null,null,null,null,null,null,null,10,"　ア欄及びイ欄には、労使協定において予め定めておいた全日休業及び短時間休業の場合の休業手当の支払い率を記入してください。"]
[]
[]
[6,"　⑩欄には、就業規則等に規定されている１日の所定労働時間を記入して下さい。なお、それが月ごとに異なる場合は判定基礎期間に係る月（暦月と判定基礎期間が異なる場合は、判定基礎期間の初日が属する月）の所定労働時間を、また労働者ごとに異なる場合は最も適用される人数の多い所定労働時間を記入して下さい。",null,null,null,null,null,null,null,null,null,null,11,"　⑭欄には、全日休業と短時間休業の休業手当支払い率をそれぞれの休業延日数で加重平均した値（小数点以下切り上げ）を入力してください。具体的な算定例は以下のとおりです。\n例：全日休業の休業手当支払い率：90％\n　　短時間休業の休業手当支払い率：80％\n　　全日休業の延日数：10人日\n　　短時間休業の延日数：３人日"]
[]
[]
[]
[]
[]
[null,null,null,null,null,null,null,null,null,null,null,null,null,"90（％）×10（人日）＋80（％）×３（人日）",null,null,null,null,null,"＝","88（％）"]
[null,null,null,null,null,null,null,null,null,null,null,null,null,"10（人日）＋３（人日）"]
[]
[]
[]
[]
[]
[]
[]
[]
[]
[]
[]
[]
[]
[]
[]
[]
[]
[]
[]
[]
[]
[]
[]
[]
[]
[]
[]
[]
[]
[]
[]
[]
[]
[]
[]
[]
[]
[]
[]
[]
[]
[]
[]
[]
[]
[]
[]
[]
[]
[]
[]
[]
[]
[]
[]
[]
[]
[]
[]
[]
[]
[]
[]
[]
[]
[6]

{"sheet":"新小第２号の２（１）（算定書）","index":8,"n_rows":30,"n_cols":40,"rows_kept":30,"cut":false,"hidden":false,"merged":[[1,0,1,39],[19,16,19,38],[19,1,19,15],[16,1,16,39],[17,1,17,15],[18,1,18,15],[14,16,14,38],[10,1,12,15],[9,1,9,15],[17,16,17,38],[18,16,18,38],[6,1,6,15],[6,16,6,38],[7,16,8,38],[3,1,3,38],[5,1,5,5],[25,0,28,39],[29,0,33,39],[13,16,13,38],[7,39,8,39],[9,16,9,38],[15,1,15,39],[20,0,20,39],[12,16,12,38],[13,1,13,15],[14,1,14,15],[10,16,10,27],[10,28,10,39],[11,16,11,26],[11,28,11,38],[7,1,8,15],[5,6,5,24],[5,25,5,30],[5,31,5,33],[5,35,5,37],[21,0,24,39]]}
[]
["様式新小第２号の２（１）助成額算定書(新型コロナウイルス感染症関係)(小規模事業主(自動計算)用様式)(R2.8)"]
[]
[null,"緊急雇用安定助成金助成額算定書"]
[]
[null,"（事業所名）",null,null,null,null,{"$f":"IF('新特小訓第６号（申立書）'!H6=\"\",\"\",'新特小訓第６号（申立書）'!H6)","v":""},null,null,null,null,null,null,null,null,null,null,null,null,null,null,null,null,null,null,"（事業所番号）",null,null,null,null,null,{"$f":"IF('新特小訓第６号（申立書）'!N7=\"\",\"\",'新特小訓第６号（申立書）'!N7)","v":""},null,null,"-",{"$f":"IF(入力シート!K8=\"\",\"\",入力シート!K8)","v":""},null,null,"-",{"$f":"IF(入力シート!P8=\"\",\"\",入力シート!P8)","v":""}]
[null,"（１） 解雇等を行わず雇用維持を行っていますか。",null,null,null,null,null,null,null,null,null,null,null,null,null,null,{"$f":"IF(AND(OR('新特小訓第６号（申立書）'!AH43=\"はい\",'新特小訓第６号（申立書）'!AH45=\"はい\"),'新特小訓第６号（申立書）'!AH47=\"はい\"),\"はい\",\"いいえ\")","v":"いいえ"}]
[null,"（２） 判定基礎期間中に支払われた休業手当等の総額\n　様式新小第２号の２(3)⑨より転記してください。",null,null,null,null,null,null,null,null,null,null,null,null,null,null,{"$f":"IF('新小第２号の２（3）（実績一覧表）'!U28=\"\",\"\",'新小第２号の２（3）（実績一覧表）'!U28)","v":""},null,null,null,null,null,null,null,null,null,null,null,null,null,null,null,null,null,null,null,null,null,null,"円"]
[]
[null,"（３） 支給見込額（上限比較前）",null,null,null,null,null,null,null,null,null,null,null,null,null,null,{"$f":"IF(Q8=\"\",\"\",IF(Q7=\"はい\",Q8,ROUNDUP(Q8*0.8,0)))","v":""},null,null,null,null,null,null,null,null,null,null,null,null,null,null,null,null,null,null,null,null,null,null,"円"]
[null,"（４）休業延日数\n　様式新小第２号の２(3)⑦及び⑪より転記してください。",null,null,null,null,null,null,null,null,null,null,null,null,null,null,"全日休業（様式新小第２号の２(3)⑦より転記）",null,null,null,null,null,null,null,null,null,null,null,"短時間休業（様式新小第２号の２(3)⑪より転記）"]
[null,null,null,null,null,null,null,null,null,null,null,null,null,null,null,null,{"$f":"IF('新小第２号の２（3）（実績一覧表）'!S28=\"\",\"\",'新小第２号の２（3）（実績一覧表）'!S28)","v":""},null,null,null,null,null,null,null,null,null,null,"人日",{"$f":"IF('新小第２号の２（3）（実績一覧表）'!R20=\"\",\"\",'新小第２号の２（3）（実績一覧表）'!R20)","v":""},null,null,null,null,null,null,null,null,null,null,"人日"]
[null,null,null,null,null,null,null,null,null,null,null,null,null,null,null,null,{"$f":"IF(AND(Q12=\"\",AC12=\"\"),\"\",SUM(Q12,AC12))","v":""},null,null,null,null,null,null,null,null,null,null,null,null,null,null,null,null,null,null,null,null,null,null,"人日"]
[null,"（５） 助成額の上限額\n　　※上限額15,000円を超える場合は15,000円",null,null,null,null,null,null,null,null,null,null,null,null,null,null,{"$f":"IF(Q13=\"\",\"\",15000*Q13)","v":""},null,null,null,null,null,null,null,null,null,null,null,null,null,null,null,null,null,null,null,null,null,null,"円 "]
[null,"（６） 支給を受けようとする助成額\n　（３）の額と（５）の額を比較して、低い方の額を記載",null,null,null,null,null,null,null,null,null,null,null,null,null,null,{"$f":"IF(Q10=\"\",\"\",IF(Q10>Q14,15000*Q13,Q10))","v":""},null,null,null,null,null,null,null,null,null,null,null,null,null,null,null,null,null,null,null,null,null,null,"円 "]
[null,"※ （３）欄は小数点以下の端数を切り上げた値を記入して下さい。"]
[null,"労働局確認欄"]
[null,"旧上限額",null,null,null,null,null,null,null,null,null,null,null,null,null,null,{"$f":"IF(Q13=\"\",\"\",IF(OR('新小第２号の２（3）（実績一覧表）'!C6>=3,AND('新小第２号の２（3）（実績一覧表）'!C6=2,'新小第２号の２（3）（実績一覧表）'!E6>=8)),Q13*8370,Q13*8330))","v":""},null,null,null,null,null,null,null,null,null,null,null,null,null,null,null,null,null,null,null,null,null,null,"円"]
[null,"旧上限額までの支給額",null,null,null,null,null,null,null,null,null,null,null,null,null,null,{"$f":"IF(Q18=\"\",\"\",IF(Q18<Q10,Q18,Q10))","v":""},null,null,null,null,null,null,null,null,null,null,null,null,null,null,null,null,null,null,null,null,null,null,"円"]
[null,"旧上限額超えの支給額",null,null,null,null,null,null,null,null,null,null,null,null,null,null,{"$f":"IF(OR(Q19=0,Q19=\"\",Q19<Q18),\"\",Q15-Q18)","v":""},null,null,null,null,null,null,null,null,null,null,null,null,null,null,null,null,null,null,null,null,null,null,"円"]
[]
["【記入要領】\n１　（１）欄には、解雇等を行わずに雇用維持を行っている場合には「はい」を、行っていない場合には「いいえ」を記入してください。\n２　（２）欄には、判定基礎期間中に実施した休業に係る休業手当の総額を記入して下さい。"]
[]
[]
[]
["３　（３）欄は、次の場合分けにより算定方法が異なりますので、以下のとおりに算定してください。\n●（１）が「はい」の場合、（２）の値をそのまま転記してください。\n●（１）が「いいえ」の場合、（２）の値に8/10を乗じた値を入力してください。\n４　（４）欄には、休業の延日数を様式新小第２号の２(3)の⑦及び⑪欄から転記して下さい。\n５　（５）欄には、助成額の上限となる、（４）×助成額単価の上限額（15,000円）を記載してください。"]
[]
[]
[]
["６　（６）欄には、（３）欄と（５）欄の額を比較し、低い方を記載してください。\n７　支給額は最終的に労働局において審査、算出された額によって決定され、本様式で算出された金額と異なる場合がありますのでご了承下さい。\n８　本様式については、支給審査を妨げないものであって、かつ、所定の事項が記載されていれば、任意の様式を用いる等しても差し支えありません。"]

{"sheet":"新小第２号の2（２）（申請書）","index":9,"n_rows":87,"n_cols":66,"rows_kept":87,"cut":false,"hidden":false,"merged":[[59,0,73,65],[50,21,50,23],[51,7,51,13],[51,14,51,20],[51,21,51,23],[43,0,51,6],[58,0,58,4],[52,14,52,23],[52,24,52,34],[52,35,52,45],[52,46,52,52],[52,53,52,65],[53,7,54,13],[53,14,53,23],[46,7,46,15],[46,30,46,39],[46,40,46,41],[46,43,46,44],[46,46,46,47],[46,49,46,65],[43,7,43,17],[43,18,43,32],[43,33,43,47],[43,48,43,65],[74,0,85,65],[86,0,96,65],[37,7,37,65],[38,7,38,62],[55,7,55,14],[55,22,55,26],[56,7,57,13],[56,14,56,65],[57,14,57,65],[53,53,53,65],[54,14,54,20],[54,21,54,23],[54,24,54,33],[54,35,54,44],[54,46,54,51],[54,53,54,64],[53,24,53,34],[53,35,53,45],[53,46,53,52],[47,7,49,13],[52,0,57,6],[52,7,52,13],[50,7,50,13],[50,14,50,20],[39,23,39,39],[39,40,39,65],[44,7,45,17],[44,18,44,32],[44,33,45,47],[44,48,45,65],[45,18,45,32],[47,14,47,65],[48,14,49,65],[41,7,41,65],[42,7,42,62],[42,63,42,65],[41,0,42,6],[33,0,36,6],[33,7,33,19],[33,20,33,36],[33,37,33,41],[33,42,33,64],[34,7,34,19],[34,20,34,36],[34,37,34,41],[34,42,34,65],[35,7,35,19],[35,20,35,38],[35,40,35,64],[36,7,36,11],[36,12,36,16],[36,17,36,20],[36,21,36,35],[40,7,40,19],[40,20,40,22],[40,23,40,38],[40,40,40,65],[37,0,40,6],[38,63,38,65],[39,7,39,22],[22,58,22,62],[24,0,24,7],[24,8,24,9],[24,12,24,13],[24,15,24,16],[24,19,24,20],[24,23,24,24],[24,26,24,27],[28,42,28,45],[28,47,28,50],[28,32,28,37],[28,7,29,13],[28,14,29,18],[28,20,29,26],[32,8,32,10],[32,11,32,12],[32,19,32,21],[32,23,32,37],[26,32,27,65],[25,0,32,6],[25,7,25,12],[25,32,25,36],[25,38,25,39],[29,32,29,37],[29,38,29,40],[25,41,25,43],[26,7,27,31],[29,42,29,45],[29,47,29,50],[30,7,30,15],[28,28,29,31],[28,19,29,19],[28,27,29,27],[28,38,28,40],[30,16,30,39],[31,7,31,22],[31,23,31,39],[16,30,17,64],[19,3,19,13],[19,14,19,21],[19,27,21,36],[19,37,19,38],[19,40,19,41],[19,43,19,46],[19,48,19,64],[20,3,20,13],[20,14,20,22],[20,37,20,38],[20,39,20,64],[21,37,21,38],[21,39,21,63],[12,36,12,39],[12,41,12,64],[13,30,13,31],[13,32,13,64],[14,30,14,31],[14,32,14,63],[1,0,1,43],[9,0,10,44],[12,7,12,8],[12,9,12,10],[12,12,12,13],[12,15,12,16],[12,26,14,29],[12,30,12,31],[12,33,12,34],[6,0,6,65]]}
[]
["様式新小第２号の２(2)申請書（新型コロナウイルス感染症関係）（小規模事業主（自動計算）用様式）(R3.2)"]
[]
[]
[]
[]
["緊急雇用安定助成金支給申請書"]
[]
[]
["緊急雇用安定助成金の支給を受けたいので、裏面記載の注意事項を了解し、次のとおり申請します。\nなお、この申請書の記載事項に係る確認を安定所（労働局）が行う場合には協力します。"]
[]
[]
[null,null,null,null,null,null,null,"令和",null,{"$f":"IF('新特小訓第４号（生産指標）'!J16=\"\",\"\",'新特小訓第４号（生産指標）'!J16)","v":""},null,"年     ",{"$f":"IF('新特小訓第４号（生産指標）'!M16=\"\",\"\",'新特小訓第４号（生産指標）'!M16)","v":""},null,"月 ",{"$f":"IF('新特小訓第４号（生産指標）'!P16=\"\",\"\",'新特小訓第４号（生産指標）'!P16)","v":""},null,"日",null,null,null,null,null,null,null,null,"事業主 ",null,null,null,"住所",null,"〒",{"$f":"IF('新特小訓第４号（生産指標）'!AH16=\"\",\"\",'新特小訓第４号（生産指標）'!AH16)","v":""},null,"－",{"$f":"IF('新特小訓第４号（生産指標）'!AK16=\"\",\"\",'新特小訓第４号（生産指標）'!AK16)","v":""},null,null,null,null,{"$f":"IF('新特小訓第４号（生産指標）'!AP16=\"\",\"\",'新特小訓第４号（生産指標）'!AP16)","v":""}]
[null,null,null,null,null,null,null,null,null,null,null,null,null,null,null,null,null,null,null,null,null,null,null,null,null,null,null,null,null,null,"名称",null,{"$f":"IF('新特小訓第４号（生産指標）'!AG17=\"\",\"\",'新特小訓第４号（生産指標）'!AG17)","v":""}]
[null,null,null,null,null,null,null,null,null,null,null,null,null,null,null,null,null,null,null,null,null,null,null,null,null,null,null,null,null,null,"氏名",null,{"$f":"IF('新特小訓第４号（生産指標）'!AG18=\"\",\"\",'新特小訓第４号（生産指標）'!AG18)","v":""}]
[]
[null,null,null,null,null,null,null,null,null,null,null,null,null,null,null,null,null,null,null,null,null,null,null,null,null,null,null,null,null,null,"申請者が代理人の場合、上欄に事業主の氏名等を、下欄に代理人の氏名等を、申請者が社会保険労務士法施行規則第16条第2項に規定する提出代行者又は同令第16条の3に規定する事務代理者の場合、上欄に事業主の氏名等を、下欄に申請者の氏名等を記載して下さい。"]
[]
[]
[null,null,null,"事業所管轄",null,null,null,null,null,null,null,null,null,null,"労働局長  殿",null,null,null,null,null,null,null,null,null,null,null,null,"代理人又は \n(提出代行者・事務代理者)\n社会保険労務士",null,null,null,null,null,null,null,null,null,"住所",null,"〒",{"$f":"IF('新特小訓第４号（生産指標）'!AO23=\"\",\"\",'新特小訓第４号（生産指標）'!AH16)","v":""},null,"－",{"$f":"IF('新特小訓第４号（生産指標）'!AR23=\"\",\"\",'新特小訓第４号（生産指標）'!AR23)","v":""},null,null,null,null,{"$f":"IF('新特小訓第４号（生産指標）'!AW23=\"\",\"\",'新特小訓第４号（生産指標）'!AW23)","v":""}]
[null,null,"（","事業所管轄",null,null,null,null,null,null,null,null,null,null,"公共職業安定所経由）",null,null,null,null,null,null,null,null,null,null,null,null,null,null,null,null,null,null,null,null,null,null,"名称",null,{"$f":"IF('新特小訓第４号（生産指標）'!AN24=\"\",\"\",'新特小訓第４号（生産指標）'!AN24)","v":""}]
[null,null,null,null,null,null,null,null,null,null,null,null,null,null,null,null,null,null,null,null,null,null,null,null,null,null,null,null,null,null,null,null,null,null,null,null,null,"氏名",null,{"$f":"IF('新特小訓第４号（生産指標）'!AN25=\"\",\"\",'新特小訓第４号（生産指標）'!AN25)","v":""}]
[]
[]
["♦判定基礎期間",null,null,null,null,null,null,null,"令和",null,{"$f":"IF('新特小訓第９号（実績一覧表）'!C6=\"\",\"\",'新特小訓第９号（実績一覧表）'!C6)","v":""},"年",{"$f":"IF('新特小訓第９号（実績一覧表）'!E6=\"\",\"\",'新特小訓第９号（実績一覧表）'!E6)","v":""},null,"月",{"$f":"IF('新特小訓第９号（実績一覧表）'!G6=\"\",\"\",'新特小訓第９号（実績一覧表）'!G6)","v":""},null,"日","～","令和",null,{"$f":"IF('新特小訓第９号（実績一覧表）'!P6=\"\",\"\",'新特小訓第９号（実績一覧表）'!P6)","v":""},"年",{"$f":"IF('新特小訓第９号（実績一覧表）'!R6=\"\",\"\",'新特小訓第９号（実績一覧表）'!R6)","v":""},null,"月",{"$f":"IF('新特小訓第９号（実績一覧表）'!T6=\"\",\"\",'新特小訓第９号（実績一覧表）'!T6)","v":""},null,"日"]
["①休業実施事業所",null,null,null,null,null,null,"(1)名　　　称",null,null,null,null,null,null,null,null,null,null,null,null,null,null,null,null,null,null,null,null,null,null,null,null,"(2)所在地 ",null,null,null,null,"〒",{"$f":"IF('新特小訓第４号（生産指標）'!AH16=\"\",\"\",'新特小訓第４号（生産指標）'!AH16)","v":""},null,"－",{"$f":"IF('新特小訓第４号（生産指標）'!AK16=\"\",\"\",'新特小訓第４号（生産指標）'!AK16)","v":""}]
[null,null,null,null,null,null,null,{"$f":"IF('新特小訓第４号（生産指標）'!AG17=\"\",\"\",'新特小訓第４号（生産指標）'!AG17)","v":""},null,null,null,null,null,null,null,null,null,null,null,null,null,null,null,null,null,null,null,null,null,null,null,null,{"$f":"IF('新特小訓第４号（生産指標）'!AP16=\"\",\"\",'新特小訓第４号（生産指標）'!AP16)","v":""}]
[]
[null,null,null,null,null,null,null,"事業所番号",null,null,null,null,null,null,{"$f":"IF('新特小訓第６号（申立書）'!N7=\"\",\"\",'新特小訓第６号（申立書）'!N7)","v":""},null,null,null,null,"-",{"$f":"IF(入力シート!K8=\"\",\"\",入力シート!K8)","v":""},null,null,null,null,null,null,"-",{"$f":"IF(入力シート!P8=\"\",\"\",入力シート!P8)","v":""},null,null,null,"緊急時の連絡先",null,null,null,null,null,{"$f":"IF(入力シート!G7=\"\",\"\",入力シート!G7)","v":""},null,null,"－",{"$f":"IF(入力シート!J7=\"\",\"\",入力シート!J7)","v":""},null,null,null,"－",{"$f":"IF(入力シート!N7=\"\",\"\",入力シート!N7)","v":""}]
[null,null,null,null,null,null,null,null,null,null,null,null,null,null,null,null,null,null,null,null,null,null,null,null,null,null,null,null,null,null,null,null,"電話番号",null,null,null,null,null,{"$f":"IF('新特小訓第６号（申立書）'!AF60=\"\",\"\",'新特小訓第６号（申立書）'!AF60)","v":""},null,null,"－",{"$f":"IF('新特小訓第６号（申立書）'!AI60=\"\",\"\",'新特小訓第６号（申立書）'!AI60)","v":""},null,null,null,"－",{"$f":"IF('新特小訓第６号（申立書）'!AM60=\"\",\"\",'新特小訓第６号（申立書）'!AM60)","v":""}]
[null,null,null,null,null,null,null,"(3)事務担当者職氏名",null,null,null,null,null,null,null,null,{"$f":"IF('新特小訓第７号（申請書）'!Q31=\"\",\"\",'新特小訓第７号（申請書）'!Q31)","v":""}]
[null,null,null,null,null,null,null,"(5)賃金締切日",null,null,null,null,null,null,null,null,null,null,null,null,null,null,null,"(6) 判定基礎期間の月末時点の雇用保険被保険者以外の労働者数"]
[null,null,null,null,null,null,null,null,"a毎月(",null,null,{"$f":"IF(入力シート!J11=\"\",\"\",入力シート!J11)","v":""},null,")日・ｂその他( ",null,null,null,null,null,{"$f":"IF(入力シート!S11=\"\",\"\",入力シート!S11)","v":""},null,null,") ",{"$f":"IF('新小第２号の２（3）（実績一覧表）'!U18=\"\",\"\",'新小第２号の２（3）（実績一覧表）'!U18)","v":""},null,null,null,null,null,null,null,null,null,null,null,null,null,null,"人"]
["\n\n②支払\n　方法\n",null,null,null,null,null,null,"国庫金振込（取引金融機関店舗名：",null,null,null,null,null,null,null,null,null,null,null,null,{"$f":"IF('新特小訓第７号（申請書）'!U34=\"\",\"\",'新特小訓第７号（申請書）'!U34)","v":""},null,null,null,null,null,null,null,null,null,null,null,null,null,null,null,null,"／支店名",null,null,null,null,{"$f":"IF('新特小訓第７号（申請書）'!AQ34=\"\",\"\",'新特小訓第７号（申請書）'!AQ34)","v":""},null,null,null,null,null,null,null,null,null,null,null,null,null,null,null,null,null,null,null,null,null,null,"）"]
[null,null,null,null,null,null,null,"金融機関コード：",null,null,null,null,null,null,null,null,null,null,null,null,{"$f":"IF('新特小訓第７号（申請書）'!U35=\"\",\"\",'新特小訓第７号（申請書）'!U35)","v":""},null,null,null,null,null,null,null,null,null,null,null,null,null,null,null,null,"支店コード:",null,null,null,null,{"$f":"IF('新特小訓第７号（申請書）'!AQ35=\"\",\"\",'新特小訓第７号（申請書）'!AQ35)","v":""}]
[null,null,null,null,null,null,null,"口座名義（フリガナ）：",null,null,null,null,null,null,null,null,null,null,null,null,{"$f":"IF(入力シート!G18=\"\",\"\",入力シート!G18)","v":""},null,null,null,null,null,null,null,null,null,null,null,null,null,null,null,null,null,null,"(",{"$f":"IF(入力シート!S18=\"\",\"\",入力シート!S18)","v":""},null,null,null,null,null,null,null,null,null,null,null,null,null,null,null,null,null,null,null,null,null,null,null,null,")"]
[null,null,null,null,null,null,null,"口座の種類:",null,null,null,null,{"$f":"IF(入力シート!G16=\"\",\"\",入力シート!G16)","v":""},null,null,null,null,"口座番号:",null,null,null,{"$f":"IF(入力シート!G17=\"\",\"\",入力シート!G17)","v":""}]
["③休業の規模",null,null,null,null,null,null,"(1) 月間休業延日数\n（様式新小第２号の２（１）の(4)の休業日数計） "]
[null,null,null,null,null,null,null,{"$f":"IF('新小第２号の２（１）（算定書）'!Q13=\"\",\"\",'新小第２号の２（１）（算定書）'!Q13)","v":""},null,null,null,null,null,null,null,null,null,null,null,null,null,null,null,null,null,null,null,null,null,null,null,null,null,null,null,null,null,null,null,null,null,null,null,null,null,null,null,null,null,null,null,null,null,null,null,null,null,null,null,null,null,null,null,"人・日 "]
[null,null,null,null,null,null,null,"(2) 月間所定労働延日数 ",null,null,null,null,null,null,null,null,null,null,null,null,null,null,null,"(3) 月間平均所定労働日数 [(2)／①(6)] \n（小数点第2位以下切り捨て）",null,null,null,null,null,null,null,null,null,null,null,null,null,null,null,null," (4) 休業規模  [(1)／(2)×100\n（小数点第2位以下切り捨て） "]
[null,null,null,null,null,null,null,{"$f":"IF('新小第２号の2（２）（申請書）'!X33=\"\",\"\",('新小第２号の２（3）（実績一覧表）'!R28/'新小第２号の２（3）（実績一覧表）'!U19)*'新小第２号の2（２）（申請書）'!X33)","v":""},null,null,null,null,null,null,null,null,null,null,null,null,"人・日 ",null,null,{"$f":"IF(OR(X33=\"\",X33=0),\"\",ROUNDDOWN(H41/X33,1))","v":""},null,null,null,null,null,null,null,null,null,null,null,null,null,null,null,"日 ",{"$f":"IF(OR(H41=\"\",H41=0),\"\",ROUNDDOWN(H39/H41*100,1))","v":""}]
["④助成額の算定",null,null,null,null,null,null,"(1) 支給を受けようとする助成金額\n(様式新小第２号の２（１）の(6))"]
[null,null,null,null,null,null,null,{"$f":"IF('新小第２号の２（１）（算定書）'!Q15=\"\",\"\",'新小第２号の２（１）（算定書）'!Q15)","v":""},null,null,null,null,null,null,null,null,null,null,null,null,null,null,null,null,null,null,null,null,null,null,null,null,null,null,null,null,null,null,null,null,null,null,null,null,null,null,null,null,null,null,null,null,null,null,null,null,null,null,null,null,null,null,null,"円"]
["※労働局処理欄",null,null,null,null,null,null,"[G]労働保険料の滞納状況",null,null,null,null,null,null,null,null,null,null,null,null,null,null,null,null,null,null,null,null,null,null,null,null,null,"[H]過去の不正受給 ",null,null,null,null,null,null,null,null,null,null,null,null,null,null,"[I]労働関係法令違反の有無 "]
[null,null,null,null,null,null,null,"（システムから確認） "]
[]
[null,null,null,null,null,null,null,"●助成金支給番号 ",null,null,null,null,null,null,null,null,null,null,null,null,null,null,null,null,null,null,null,null,null,null,"●支給決定年月日 ",null,null,null,null,null,null,null,null,null,null,null,"年     ",null,null,"月 ",null,null,"日"]
[null,null,null,null,null,null,null,"労働局決裁欄 ",null,null,null,null,null,null,"（局長）       （部長・      ）        （課長・      ）          （補佐・      ）         （係長・      ）       （           ） "]
[null,null,null,null,null,null,null,null,null,null,null,null,null,null,"  "]
[]
[null,null,null,null,null,null,null,"旧上限額までの支給額",null,null,null,null,null,null,{"$f":"IF('新小第２号の２（１）（算定書）'!Q19=\"\",\"\",'新小第２号の２（１）（算定書）'!Q19)","v":""},null,null,null,null,null,null,"円"]
[null,null,null,null,null,null,null,"旧上限額超えの支給額",null,null,null,null,null,null,{"$f":"IF('新小第２号の２（１）（算定書）'!Q20=\"\",\"\",'新小第２号の２（１）（算定書）'!Q20)","v":""},null,null,null,null,null,null,"円"]
["※ 安定所処理欄",null,null,null,null,null,null,"区       分 ",null,null,null,null,null,null,"[Ａ]判定基礎期間\n助成対象休業延日数 ",null,null,null,null,null,null,null,null,null,"[Ｂ]判定基礎期間\n暦月末日対象労働者数 ",null,null,null,null,null,null,null,null,null,null,"[Ｃ]   [Ａ]／[Ｂ] ",null,null,null,null,null,null,null,null,null,null,"[Ｄ]前判定基礎\n期間後残日数 ",null,null,null,null,null,null,"[Ｅ]残日数 "]
[null,null,null,null,null,null,null,"休業助成金 ",null,null,null,null,null,null,null,null,null,null,null,null,null,null,null,null,"  ",null,null,null,null,null,null,null,null,null,null,"  ",null,null,null,null,null,null,null,null,null,null,"  ",null,null,null,null,null,null,"  "]
[null,null,null,null,null,null,null,null,null,null,null,null,null,null,null,null,null,null,null,null,null,"人・日 ",null,null,null,null,null,null,null,null,null,null,null,null,"人 ",null,null,null,null,null,null,null,null,null,null,"日 ",null,null,null,null,null,null,"日 ",null,null,null,null,null,null,null,null,null,null,null,null,"日 "]
[null,null,null,null,null,null,null,"[F]支給判定金額  ",null,null,null,null,null,null,null,null,null,null,null,null,null,null,"（休業）",null,null,null,null,null,null,null,null,null,null,null,null,null,null,null,null,null,null,null,null,null,null,null,null,null,null,null,null,"円 "]
[null,null,null,null,null,null,null,"安定所決裁欄 ",null,null,null,null,null,null,"（所長）      　（部長・次長） 　　     （課長・統括） 　　    （上席・係長）     　　  （職業指導官） 　　   （担当）"]
[null,null,null,null,null,null,null,null,null,null,null,null,null,null,"  "]
["注意事項"]
["【記入要領】\n１　本様式は一つの判定基礎期間ごとに別葉にして記入して下さい。二又は三の連続する判定基礎期間について支給申請する場合、２箇月目又は３箇月目の判定基礎期間の分については、◆判定基礎期間欄、①(6)欄、③欄及び④欄のみの記入で差し支えありません。\n２　①(6)欄には、「判定基礎期間の月末時点の雇用保険被保険者以外の労働者数」（※）を記入して下さい。なお、判定基礎期間内に暦月の末日がない場合は、当該判定基礎期間の末日時点の数を記入して下さい。また、２つの判定基礎期間を通算した期間を一の判定基礎期間として申請する事業所において当該一の判定基礎期間内に暦月の末日が２つある場合、いずれか遅い方の暦月の末日時点の数を記入して下さい。\n（※）「判定基礎期間の月末時点の雇用保険被保険者以外の労働者数」とは、休業実施事業所に雇用される雇用保険の被保険者でない労働者のうち、次を除いた者をいいます。\na　雇用関係の確認が出来ないもの\nb　法人の取締役及び合名会社等の役員、監査役、協同組合等の社団又は財団の役員等\nc　解雇を予告されている者、退職願を提出した者、事業主による退職勧奨に応じた者（当該解雇その他離職の日の翌日において安定した職業に就くことが明らかな者を除く）\nd　日雇労働者\ne　地方公営企業法（昭和27年法律第292号）第２条の規定の適用を受ける地方公共団体が経営する企業において、公務員の身分を有する者\n３　②欄には、振込先を記入してください。なお、変更の無い場合は、２回目以降の申請の際は記入の必要はありません。\n４　③(1)欄には、様式新小第２号の２（１）の(4)の全日休業と短時間休業の日数の計を記入して下さい。\n５　③(2)欄には、休業実施事業所のすべての対象労働者の判定基礎期間における所定労働日の数の合計を記入して下さい。\n６　③(4)欄は、従業員２人あたり１日以上休業していることを確認できれば、当該要件を満たしているものとします。\n７　④(1)欄には、様式新小第２号の２（１）の(6)の額を記入して下さい。"]
[]
[]
[]
[]
[]
[]
[]
[]
[]
[]
[]
[]
[]
[]
["【支給申請にあたっての注意事項】\n　　緊急雇用安定助成金の支給申請は、本様式及び「雇用調整助成金ガイドブック」の「支給申請に必要な書類」に示す添付書類を用いて次によって提出して下さい。\n１　休業を実施し、当該休業に係る手当（労働基準法第26条の規定に違反していない場合）を休業協定どおりに支払った場合に提出して下さい。\n２　休業を実施した事業所（以下「休業実施事業所」という。）ごとに提出して下さい。\n３　一つの判定基礎期間又は二つ以上の連続した判定基礎期間（支給対象期間）毎に提出して下さい。\n４　判定基礎期間の末日から、２か月以内に（ただし、天災その他その期間内に申請しなかったことについてやむを得ない理由があるときは、当該理由のやんだ後１か月が経過する日までにその理由を記入した書面を添えて）提出して下さい。\n５　代理人が申請する場合にあっては、委任状（写）を添付して下さい。\n６　雇用維持要件における解雇等(解雇予告を含む。)とは、以下を指します。\n　①　事業主に直接雇用される期間の定めのない労働契約を締結する労働者の場合、解雇又は退職勧奨（労働者が同意した場合も含む。）等により事業主都合による離職をさせること\n　②　事業主に直接雇用される期間の定めのある労働契約を締結する労働者の場合、解雇と見なされる労働者の雇止め、中途契約解除等により事業主都合による離職をさせること\n　③　対象事業主の事業所に役務の提供を行っている派遣労働者の場合、労働者派遣契約期間満了前の事業主都合による契約解除\n　　解除を行うこと\n　なお、以上については、コロナウイルス感染症を理由とする解雇も含みます。"]
[]
[]
[]
[]
[]
[]
[]
[]
[]
[]
[]
["【受給にあたっての注意事項】\n１　緊急雇用安定助成金は、併給調整の対象となる助成金等と同時に支給対象となりません。またそれ以外の助成金等についても、本支給申請の対象となる休業について支給を受けている場合は支給対象とならない場合があります。\n２　偽りその他不正の行為により本来受けることのできない助成金の支給を受け又は受けようとしたことが判明した場合には、不正行為により本来受けることのできない助成金を受け又は受けようとした最初の判定基礎期間以降に支給したすべての助成金を返還していただくとともに、当該期間以降に受けようとした助成金については不支給とさせていただきます。\n３　２によらず、助成金の支給すべき額を超えて助成金の支給を受けた場合には、その支給すべき額を超えて支払われた部分の額を返還していただきます。\n４　労働基準法第２６条の規定に違反して支払った手当について助成金の支給を受けた場合には、助成金のうち当該違反して支払った手当に係る部分の額を返還していただきます。\n５　助成金の受給に当たっては、リーフレット等に記載されているもののほか、各種要件がありますので、本支給申請前に都道府県労働局又は公共職業安定所に確認して下さい。\n"]